Workbook

Sheet Main
B2: BOILER EFFICIENCY CALCULATION (PER ASME PTC 4)
B4: Client: | D4: Sample company | I4: Date: | J4: 2017-05-30 | O4: Selection Basis
B5: Plant Location: | D5: Sample location | O5: Unit Preference | P5: 1 | Q5: 1: English 2: Metric
D6: WI | O6: Moisture Measurement Basis | P6: 1 | Q6: 1: Wet-bulb 2: Relative Humidity
B7: Contact Person: | D7: XXXXX | I7: Engineer: | J7: Kelly Paffel | O7: Flue Gas Measurement Basis | P7: 1 | Q7: 1: Dry 2: Wet | AD7: Unit Conversion: 1 English unit to SI unit
B8: Email: | I8: Email: | J8: Kelly.paffel@invenoeng.com | O8: Type of Gas Measured in Flue | P8: 1 | Q8: 1: Oxygen 2: Carbon Dioxide | AA8: Previous Units: | AB8: 2 | AD8: 0.45359237 | AE8: kg
B9: Contact Number: | I9: Contact No.: | J9: 239-289-3667 | O9: Unit for Carbon Monoxide | P9: 1 | Q9: 1: ppm 2: % Vol | AA9: 1 | AB9: 2 | AD9: 0.3048 | AE9: m
O10: Ash Residue | P10: 2 | Q10: 1: Yes 2: No | AA10: For Unit Conversion | AD10: 0.06894757293 | AE10: bara
B11: Fuel Data | O11: Fuel Type | P11: 8 | Q11: ="1: "&Fuel!B4 & " 2: "&Fuel!B5 & " 3: "&Fuel!B6 & " 4: "&Fuel!B7 & " 5: "&Fuel!B8 & " 6: "&Fuel!B9 & " 7: "&Fuel!B10 & " 8: "&Fuel!B11 & " 9: "& "Blank" -> 1: Coal 2: Diesel 3: Fuel No.2 4: Fuel No.6 5: Gasoline 6: Heavy Fuel oil 7: Kerosene 8: Natural Gas 9: Blank | AA11: English | AB11: Metric | AD11: 1.055055853 | AE11: kJ
C12: Fuel Type: | L12: =IF(Fuel_Type=9,"¬","") -> 
C13: Fuel Input: | F13: 11000 | G13: =IF(Units_Pref=1,"lb/h","kg/h") -> lb/h | L13: =IF(ISBLANK(F13),"¬","") ->  | R13: Mass % (Ultimate Analysis): | S13: =IF(SUM($S$14:$Y$14)=0,0,S14/SUM($S$14:$Y$14)*100) -> 66.94385398 | T13: =IF(SUM($S$14:$Y$14)=0,0,T14/SUM($S$14:$Y$14)*100) -> 21.13648454 | U13: 0 | V13: 0 | W13: 0 | X13: 0 | Y13: 11.91966148 | AA13: =IF(Units_Pref=AA$9,$F13,$F13/Unit_Preference_Mass) -> 11000 | AB13: =IF(Units_Pref=AB$9,$F13,$F13*Unit_Preference_Mass_SI) -> 4989.51607
C14: Fuel High Heating Value (HHV): | F14: 14100 | G14: =IF(Units_Pref=1,"Btu/lb","kJ/kg") -> Btu/lb | H14: - by lab GC analysis | L14: =IF(ISBLANK(F14),"¬","") ->  | R14: Mass: | S14: =S15*S16 -> 1213.111 | T14: =T15*T16 -> 383.021 | U14: 0 | V14: 0 | W14: 0 | X14: 0 | Y14: 216 | AA14: =IF(Units_Pref=AA$9,$F14,$F14*Unit_Preference_Mass/Unit_Preference_Energy) -> 14100 | AB14: =IF(Units_Pref=AB$9,$F14,$F14*Unit_Preference_Energy_SI/Unit_Preference_Mass_SI) -> 32796.60001
C15: Unburned Carbon Loss: | F15: 0.4 | G15: % of Fuel Input | L15: =IF(ISBLANK(F15),"¬","") ->  | R15: Moles: | S15: =SUMPRODUCT($P$19:$P$28,S19:S28) -> 101 | T15: =SUMPRODUCT($P$19:$P$28,T19:T28) -> 190 | U15: 0 | V15: 0 | W15: 0 | X15: 0 | Y15: 6
P16: =SUM(P19:P28) -> 100 | R16: M.W: | S16: =IF(S18>0,VLOOKUP(S18,Combustion!$C$7:$AG$41,2,FALSE),"") -> 12.011 | T16: =IF(T18>0,VLOOKUP(T18,Combustion!$C$7:$AG$41,2,FALSE),"") -> 2.0159 | U16: =IF(U18>0,VLOOKUP(U18,Combustion!$C$7:$AG$41,2,FALSE),"") -> 32.066 | V16: =IF(V18>0,VLOOKUP(V18,Combustion!$C$7:$AG$41,2,FALSE),"") -> 31.9988 | W16: =IF(W18>0,VLOOKUP(W18,Combustion!$C$7:$AG$41,2,FALSE),"") -> 28.0134 | X16: =IF(X18>0,VLOOKUP(X18,Combustion!$C$7:$AG$41,2,FALSE),"") -> 18.0153 | Y16: =IF(Y18>0,VLOOKUP(Y18,Combustion!$C$7:$AG$41,2,FALSE),"") -> 36
C17: Ultimate Analysis | F17: =IF(Units_Pref=1,"Theo. Air lb/ 100 lb Fuel","Theo. Air kg/ 100 kg Fuel") -> Theo. Air lb/ 100 lb Fuel | H17: =IF(Units_Pref=1,"H2O lb/ 100 lb Fuel","H2O kg/ 100 kg Fuel") -> H2O lb/ 100 lb Fuel | N17: No. | O17: Compound | P17: Vol% | Q17: Chem. Formula | R17: M.W | S17: Elemental Breakdown
C18: Constituent | D18: M.W | E18: Mass % | F18: Constant | G18: Amount | H18: Constant | I18: Amount | S18: C | T18: H2 | U18: S | V18: O2 | W18: N2 | X18: H2O | Y18: Ash
C19: C | D19: =VLOOKUP(C19,Combustion!$C$7:$D$39,2,FALSE) -> 12.011 | E19: 80.31 | F19: =1*Combustion!$D$40/Combustion!$AD$40/D19 -> 11.51213253 | G19: =E19*F19 -> 924.5393635 | L19: =IF(ISBLANK(E19),"¬","") ->  | N19: N19 | O19: Methane | P19: 90 | Q19: =IF($O19>0,VLOOKUP($O19,Combustion!$B$7:$AG$41,2,FALSE),"") -> CH4 | R19: =IF($O19>0,VLOOKUP($O19,Combustion!$B$7:$AG$41,3,FALSE),"") -> 16.0428 | S19: =IF($O19>0,VLOOKUP($O19,Combustion!$B$7:$AG$41,26,FALSE),"") -> 1 | T19: =IF($O19>0,VLOOKUP($O19,Combustion!$B$7:$AG$41,27,FALSE),"") -> 2 | U19: =IF($O19>0,VLOOKUP($O19,Combustion!$B$7:$AG$41,28,FALSE),"") -> 0 | V19: =IF($O19>0,VLOOKUP($O19,Combustion!$B$7:$AG$41,29,FALSE),"") -> 0 | W19: =IF($O19>0,VLOOKUP($O19,Combustion!$B$7:$AG$41,30,FALSE),"") -> 0 | X19: =IF($O19>0,VLOOKUP($O19,Combustion!$B$7:$AG$41,31,FALSE),"") -> 0 | Y19: =IF($O19>0,VLOOKUP($O19,Combustion!$B$7:$AG$41,32,FALSE),"") -> 0
C20: H2 | D20: =VLOOKUP(C20,Combustion!$C$7:$D$39,2,FALSE) -> 2.0159 | E20: 4.47 | F20: =0.5*Combustion!$D$40/Combustion!$AD$40/D20 -> 34.29540746 | G20: =E20*F20 -> 153.3004714 | H20: =1/D20*Combustion!$D$39 -> 8.936603998 | I20: =H20*E20 -> 39.94661987 | N20: N20 | O20: Propane | P20: 2 | Q20: =IF($O20>0,VLOOKUP($O20,Combustion!$B$7:$AG$41,2,FALSE),"") -> C3H8 | R20: =IF($O20>0,VLOOKUP($O20,Combustion!$B$7:$AG$41,3,FALSE),"") -> 44.0966 | S20: =IF($O20>0,VLOOKUP($O20,Combustion!$B$7:$AG$41,26,FALSE),"") -> 3 | T20: =IF($O20>0,VLOOKUP($O20,Combustion!$B$7:$AG$41,27,FALSE),"") -> 4 | U20: =IF($O20>0,VLOOKUP($O20,Combustion!$B$7:$AG$41,28,FALSE),"") -> 0 | V20: =IF($O20>0,VLOOKUP($O20,Combustion!$B$7:$AG$41,29,FALSE),"") -> 0 | W20: =IF($O20>0,VLOOKUP($O20,Combustion!$B$7:$AG$41,30,FALSE),"") -> 0 | X20: =IF($O20>0,VLOOKUP($O20,Combustion!$B$7:$AG$41,31,FALSE),"") -> 0 | Y20: =IF($O20>0,VLOOKUP($O20,Combustion!$B$7:$AG$41,32,FALSE),"") -> 0
C21: S | D21: =VLOOKUP(C21,Combustion!$C$7:$D$39,2,FALSE) -> 32.066 | E21: 1.54 | F21: =1*Combustion!$D$40/Combustion!$AD$40/D21 -> 4.312113261 | G21: =E21*F21 -> 6.640654421 | N21: N21 | O21: Ash | P21: 6 | Q21: =IF($O21>0,VLOOKUP($O21,Combustion!$B$7:$AG$41,2,FALSE),"") -> Ash | R21: =IF($O21>0,VLOOKUP($O21,Combustion!$B$7:$AG$41,3,FALSE),"") -> 36 | S21: =IF($O21>0,VLOOKUP($O21,Combustion!$B$7:$AG$41,26,FALSE),"") -> 0 | T21: =IF($O21>0,VLOOKUP($O21,Combustion!$B$7:$AG$41,27,FALSE),"") -> 0 | U21: =IF($O21>0,VLOOKUP($O21,Combustion!$B$7:$AG$41,28,FALSE),"") -> 0 | V21: =IF($O21>0,VLOOKUP($O21,Combustion!$B$7:$AG$41,29,FALSE),"") -> 0 | W21: =IF($O21>0,VLOOKUP($O21,Combustion!$B$7:$AG$41,30,FALSE),"") -> 0 | X21: =IF($O21>0,VLOOKUP($O21,Combustion!$B$7:$AG$41,31,FALSE),"") -> 0 | Y21: =IF($O21>0,VLOOKUP($O21,Combustion!$B$7:$AG$41,32,FALSE),"") -> 1
C22: O2 | D22: =VLOOKUP(C22,Combustion!$C$7:$D$39,2,FALSE) -> 31.9988 | E22: 2.85 | F22: =-1*Combustion!$D$40/Combustion!$AD$40/D22 -> -4.321169038 | G22: =E22*F22 -> -12.31533176 | N22: N22 | O22: Carbon | P22: 1.5 | Q22: =IF($O22>0,VLOOKUP($O22,Combustion!$B$7:$AG$41,2,FALSE),"") -> C | R22: =IF($O22>0,VLOOKUP($O22,Combustion!$B$7:$AG$41,3,FALSE),"") -> 12.011 | S22: =IF($O22>0,VLOOKUP($O22,Combustion!$B$7:$AG$41,26,FALSE),"") -> 1 | T22: =IF($O22>0,VLOOKUP($O22,Combustion!$B$7:$AG$41,27,FALSE),"") -> 0 | U22: =IF($O22>0,VLOOKUP($O22,Combustion!$B$7:$AG$41,28,FALSE),"") -> 0 | V22: =IF($O22>0,VLOOKUP($O22,Combustion!$B$7:$AG$41,29,FALSE),"") -> 0 | W22: =IF($O22>0,VLOOKUP($O22,Combustion!$B$7:$AG$41,30,FALSE),"") -> 0 | X22: =IF($O22>0,VLOOKUP($O22,Combustion!$B$7:$AG$41,31,FALSE),"") -> 0 | Y22: =IF($O22>0,VLOOKUP($O22,Combustion!$B$7:$AG$41,32,FALSE),"") -> 0
C23: N2 | D23: =VLOOKUP(C23,Combustion!$C$7:$D$39,2,FALSE) -> 28.0134 | E23: 1.27 | N23: N23 | O23: Toluene | P23: 0.5 | Q23: =IF($O23>0,VLOOKUP($O23,Combustion!$B$7:$AG$41,2,FALSE),"") -> C7H8 | R23: =IF($O23>0,VLOOKUP($O23,Combustion!$B$7:$AG$41,3,FALSE),"") -> 92.1406 | S23: =IF($O23>0,VLOOKUP($O23,Combustion!$B$7:$AG$41,26,FALSE),"") -> 7 | T23: =IF($O23>0,VLOOKUP($O23,Combustion!$B$7:$AG$41,27,FALSE),"") -> 4 | U23: =IF($O23>0,VLOOKUP($O23,Combustion!$B$7:$AG$41,28,FALSE),"") -> 0 | V23: =IF($O23>0,VLOOKUP($O23,Combustion!$B$7:$AG$41,29,FALSE),"") -> 0 | W23: =IF($O23>0,VLOOKUP($O23,Combustion!$B$7:$AG$41,30,FALSE),"") -> 0 | X23: =IF($O23>0,VLOOKUP($O23,Combustion!$B$7:$AG$41,31,FALSE),"") -> 0 | Y23: =IF($O23>0,VLOOKUP($O23,Combustion!$B$7:$AG$41,32,FALSE),"") -> 0
C24: H2O | D24: =VLOOKUP(C24,Combustion!$C$7:$D$39,2,FALSE) -> 18.0153 | E24: 3.01 | H24: =1/D24*Combustion!$D$39 -> 1 | I24: =H24*E24 -> 3.01 | N24: N24 | Q24: =IF($O24>0,VLOOKUP($O24,Combustion!$B$7:$AG$41,2,FALSE),"") ->  | R24: =IF($O24>0,VLOOKUP($O24,Combustion!$B$7:$AG$41,3,FALSE),"") ->  | S24: =IF($O24>0,VLOOKUP($O24,Combustion!$B$7:$AG$41,26,FALSE),"") ->  | T24: =IF($O24>0,VLOOKUP($O24,Combustion!$B$7:$AG$41,27,FALSE),"") ->  | U24: =IF($O24>0,VLOOKUP($O24,Combustion!$B$7:$AG$41,28,FALSE),"") ->  | V24: =IF($O24>0,VLOOKUP($O24,Combustion!$B$7:$AG$41,29,FALSE),"") ->  | W24: =IF($O24>0,VLOOKUP($O24,Combustion!$B$7:$AG$41,30,FALSE),"") ->  | X24: =IF($O24>0,VLOOKUP($O24,Combustion!$B$7:$AG$41,31,FALSE),"") ->  | Y24: =IF($O24>0,VLOOKUP($O24,Combustion!$B$7:$AG$41,32,FALSE),"") -> 
C25: Ash | E25: 6.55 | N25: N25 | Q25: =IF($O25>0,VLOOKUP($O25,Combustion!$B$7:$AG$41,2,FALSE),"") ->  | R25: =IF($O25>0,VLOOKUP($O25,Combustion!$B$7:$AG$41,3,FALSE),"") ->  | S25: =IF($O25>0,VLOOKUP($O25,Combustion!$B$7:$AG$41,26,FALSE),"") ->  | T25: =IF($O25>0,VLOOKUP($O25,Combustion!$B$7:$AG$41,27,FALSE),"") ->  | U25: =IF($O25>0,VLOOKUP($O25,Combustion!$B$7:$AG$41,28,FALSE),"") ->  | V25: =IF($O25>0,VLOOKUP($O25,Combustion!$B$7:$AG$41,29,FALSE),"") ->  | W25: =IF($O25>0,VLOOKUP($O25,Combustion!$B$7:$AG$41,30,FALSE),"") ->  | X25: =IF($O25>0,VLOOKUP($O25,Combustion!$B$7:$AG$41,31,FALSE),"") ->  | Y25: =IF($O25>0,VLOOKUP($O25,Combustion!$B$7:$AG$41,32,FALSE),"") -> 
C26: Total | E26: =SUM(E19:E25) -> 100 | F26: Air: | G26: =IF($E$26=100,SUM(G19:G25),"") -> 1072.165157 | H26: H2O: | I26: =IF($E$26=100,SUM(I19:I25),"") -> 42.95661987 | N26: N26 | Q26: =IF($O26>0,VLOOKUP($O26,Combustion!$B$7:$AG$41,2,FALSE),"") ->  | R26: =IF($O26>0,VLOOKUP($O26,Combustion!$B$7:$AG$41,3,FALSE),"") ->  | S26: =IF($O26>0,VLOOKUP($O26,Combustion!$B$7:$AG$41,26,FALSE),"") ->  | T26: =IF($O26>0,VLOOKUP($O26,Combustion!$B$7:$AG$41,27,FALSE),"") ->  | U26: =IF($O26>0,VLOOKUP($O26,Combustion!$B$7:$AG$41,28,FALSE),"") ->  | V26: =IF($O26>0,VLOOKUP($O26,Combustion!$B$7:$AG$41,29,FALSE),"") ->  | W26: =IF($O26>0,VLOOKUP($O26,Combustion!$B$7:$AG$41,30,FALSE),"") ->  | X26: =IF($O26>0,VLOOKUP($O26,Combustion!$B$7:$AG$41,31,FALSE),"") ->  | Y26: =IF($O26>0,VLOOKUP($O26,Combustion!$B$7:$AG$41,32,FALSE),"") -> 
E27: =IF(E26=100,"","↑ Please ensure the total add up is equal to 100%!") ->  | N27: N27 | Q27: =IF($O27>0,VLOOKUP($O27,Combustion!$B$7:$AG$41,2,FALSE),"") ->  | R27: =IF($O27>0,VLOOKUP($O27,Combustion!$B$7:$AG$41,3,FALSE),"") ->  | S27: =IF($O27>0,VLOOKUP($O27,Combustion!$B$7:$AG$41,26,FALSE),"") ->  | T27: =IF($O27>0,VLOOKUP($O27,Combustion!$B$7:$AG$41,27,FALSE),"") ->  | U27: =IF($O27>0,VLOOKUP($O27,Combustion!$B$7:$AG$41,28,FALSE),"") ->  | V27: =IF($O27>0,VLOOKUP($O27,Combustion!$B$7:$AG$41,29,FALSE),"") ->  | W27: =IF($O27>0,VLOOKUP($O27,Combustion!$B$7:$AG$41,30,FALSE),"") ->  | X27: =IF($O27>0,VLOOKUP($O27,Combustion!$B$7:$AG$41,31,FALSE),"") ->  | Y27: =IF($O27>0,VLOOKUP($O27,Combustion!$B$7:$AG$41,32,FALSE),"") -> 
C28: Theoretical air: | E28: =MqThA*10000 -> 7.604008209 | F28: =IF(Units_Pref=1,"lb/ 10,000 Btu","kg/ 10,000 kJ") -> lb/ 10,000 Btu | N28: N28 | Q28: =IF($O28>0,VLOOKUP($O28,Combustion!$B$7:$AG$41,2,FALSE),"") ->  | R28: =IF($O28>0,VLOOKUP($O28,Combustion!$B$7:$AG$41,3,FALSE),"") ->  | S28: =IF($O28>0,VLOOKUP($O28,Combustion!$B$7:$AG$41,26,FALSE),"") ->  | T28: =IF($O28>0,VLOOKUP($O28,Combustion!$B$7:$AG$41,27,FALSE),"") ->  | U28: =IF($O28>0,VLOOKUP($O28,Combustion!$B$7:$AG$41,28,FALSE),"") ->  | V28: =IF($O28>0,VLOOKUP($O28,Combustion!$B$7:$AG$41,29,FALSE),"") ->  | W28: =IF($O28>0,VLOOKUP($O28,Combustion!$B$7:$AG$41,30,FALSE),"") ->  | X28: =IF($O28>0,VLOOKUP($O28,Combustion!$B$7:$AG$41,31,FALSE),"") ->  | Y28: =IF($O28>0,VLOOKUP($O28,Combustion!$B$7:$AG$41,32,FALSE),"") -> 
C29: Unburned Carbon: | E29: =MpUbC -> 0.3889655172 | F29: % of Fuel
C30: Theoretical air, Corrected: | E30: =MqThACr*10000 -> 7.572250602 | F30: =IF(Units_Pref=1,"lb/ 10,000 Btu","kg/ 10,000 kJ") -> lb/ 10,000 Btu | H30: =MoThACr -> 0.3686447423 | I30: =IF(Units_Pref=1,"mol/ lb Fuel","mol/ kg Fuel") -> mol/ lb Fuel
C31: Calc. HHV (Dulong's equation) | E31: =(14544*(MpCb)/100+62028*(MpH2F-(MpO2F/8))/100+4050*MpSF/100)*Unit_Preference_Energy/Unit_Preference_Mass -> 14237.76211 | F31: =IF(Units_Pref=1,"Btu/lb","kJ/kg") -> Btu/lb | G31: =(E31-F14)/F14 -> 0.009770362069 | H31: ="variance from measured HHV." & IF(ABS(G31)<0.05, " GC less than 5% error. Acceptable."," More than 5% error. Please check GC accuracy! You may proceed if you have double checked") -> variance from measured HHV. GC less than 5% error. Acceptable.
B33: Input Conditions | N33: For Calculations
C34: Temperature Data Measurement | N34: ASME Acronyms
C35: Ambient temperature: | F35: 80 | G35: =IF(Units_Pref=1,"°F","°C") -> °F | H35: =IF(ISBLANK(F35),"¬","") ->  | I35: Reference Temperature: | K35: =IF(Units_Pref=1,77,(77-32)*5/9) -> 77 | L35: =IF(Units_Pref=1,"°F","°C") -> °F | N35: TMnA or TA | O35: =IF(Units_Pref=1,F35,F35*9/5+32) -> 80 | P35: °F | Q35: (°F as basis for ambient temp) | AA35: =IF(Units_Pref=AA$9,$F35,$F35*9/5+32) -> 80 | AB35: =IF(Units_Pref=AB$9,$F35,($F35-32)*5/9) -> 26.66666667
C36: Entering air temperature (Dry-Bulb): | F36: 80 | G36: =IF(Units_Pref=1,"°F","°C") -> °F | H36: =IF(ISBLANK(F36),"¬","") ->  | I36: as per ASME PTC 4 | N36: TMnAEn | O36: =IF(Units_Pref=1,F36,F36*9/5+32) -> 80 | P36: °F | Q36: (°F as basis for entering air temp) | AA36: =IF(Units_Pref=AA$9,$F36,$F36*9/5+32) -> 80 | AB36: =IF(Units_Pref=AB$9,$F36,($F36-32)*5/9) -> 26.66666667
C37: Flue gas temperature: | F37: 432 | G37: =IF(Units_Pref=1,"°F","°C") -> °F | H37: =IF(ISBLANK(F37),"¬","") ->  | N37: TFgLvCr | O37: =IF(Units_Pref=1,F37,F37*9/5+32) -> 432 | P37: °F | Q37: (°F as basis for flue gas temp) | V37: =(O37-32)*5/9+273.15 -> 495.3722222 | W37: K | X37: (K as basis for HDFgLvCr) | AA37: =IF(Units_Pref=AA$9,$F37,$F37*9/5+32) -> 432 | AB37: =IF(Units_Pref=AB$9,$F37,($F37-32)*5/9) -> 222.2222222
C38: Fuel temperature: | F38: 80 | G38: =IF(Units_Pref=1,"°F","°C") -> °F | H38: =IF(ISBLANK(F38),"¬","") ->  | N38: Tfuel | O38: =IF(Units_Pref=1,F38,F38*9/5+32) -> 80 | P38: °F | Q38: (°F as basis for fuel temp) | AA38: =IF(Units_Pref=AA$9,$F38,$F38*9/5+32) -> 80 | AB38: =IF(Units_Pref=AB$9,$F38,($F38-32)*5/9) -> 26.66666667
N39: Tre | O39: =IF(Units_Pref=1,K35,K35*9/5+32) -> 77 | P39: °F | Q39: (°F as basis for reference temp) | V39: =(O39-32)*5/9+273.15 -> 298.15 | W39: K | X39: (K as basis for HDFgLvCr) | AA39: =IF(Units_Pref=AA$9,$K35,$K35*9/5+32) -> 77 | AB39: =IF(Units_Pref=AB$9,$K35,($K35-32)*5/9) -> 25
C40: Moisture Level Measurement & Calculation | N40: MFrThA | O40: =G26/100 -> 10.72165157 | P40: mass/mass fuel
C41: Measurement Basis: | N41: MqThA | O41: =MFrThA/HHVF -> 0.0007604008209 | P41: mass/ energy
C42: =IF(P6=1,"Wet-Bulb Temperature:", "Relative Humidity:") -> Wet-Bulb Temperature: | F42: 82 | G42: =IF($P$6=1,IF(Units_Pref=1,"°F","°C"),"%") -> °F | H42: =IF(ISBLANK(F42),"¬","") ->  | L42: =IF(ISBLANK(F42),"¬","") ->  | N42: Twb | O42: =IF(Units_Pref=1,F42,F42*9/5+32) -> 82 | P42: °F | Q42: (°F as basis for wet-bulb temp) | AA42: =IF(Units_Pref=AA$9,$F42,$F42*9/5+32) -> 82 | AB42: =IF(Units_Pref=AB$9,$F42,($F42-32)*5/9) -> 27.77777778
C43: Barometric Pressure: | F43: =Pa -> 14.69594878 | G43: =IF(Units_Pref=1,"psia","bara") -> psia | N43: MqThACr | O43: =MqThA-MpUbC*F19/100/HHVF -> 0.0007572250602 | P43: mass/ energy
C44: Partial Pressure of H2O in Air: | F44: =PpWvA -> 0.5513768058 | G44: =IF(Units_Pref=1,"psia","bara") -> psia | N44: PsWvTz | O44: =IF(Units_Pref=1,(Sat_C1+Sat_C2*O45+Sat_C3*O45^2+Sat_C4*O45^3+Sat_C5*O45^4+Sat_C6*O45^5)*Unit_Preference_Pressure,(Sat_C1+Sat_C2*O45+Sat_C3*O45^2+Sat_C4*O45^3+Sat_C5*O45^4+Sat_C6*O45^5)*Unit_Preference_Pressure/Unit_Preference_Press_SI) -> 0.5409376991 | P44: psia | Q44: (psia as basis for saturation pressure)
C45: Saturated Pressure of H2O: | F45: =PsWvTz -> 0.5409376991 | G45: =IF(Units_Pref=1,"psia","bara") -> psia | H45: =IF($P$6=1,"at wet-bulb temperature","at dry-bulb temperature") -> at wet-bulb temperature | N45: Twb_Tdb | O45: =IF(Moist_Basis=1,O42,O36) -> 82 | P45: °F | Q45: (°F as basis. Temp taken based on Moisture Measurement Basis)
C46: Moisture level in air: | F46: =MFrWDA -> 0.02424650063 | G46: =IF(Units_Pref=1,"lb/lb dry air","kg/kg dry air") -> lb/lb dry air | N46: RHM | O46: =F42 -> 82 | P46: %
C47: Additional moisture level in fuel: | G47: =IF(Units_Pref=1,"lb/lb fuel","kg/kg dry fuel") -> lb/lb fuel | L47: =IF(ISBLANK(F47),"¬","") -> ¬ | N47: MpCb | O47: =E19-MpUbC -> 79.92103448 | P47: %
N48: MpH2F | O48: =E20 -> 4.47 | P48: %
C49: Flue Gas Measurement & Excess Air Calculation | N49: MpSF | O49: 1.54 | P49: %
C50: Flue Gas Measurement Basis: | N50: MpO2F | O50: 2.85 | P50: %
C51: Type of Flue Gas Measured: | N51: MpN2F | O51: 1.27 | P51: %
C52: =IF(Flue_Type=1, "Excess O2 in Flue Gas:", "Excess CO2 in Flue Gas:") -> Excess O2 in Flue Gas: | E52: =IF(Flue_Measure_Basis=1,"Dry:","Wet:") -> Dry: | F52: 8.6 | G52: % vol | H52: =IF(Flue_Measure_Basis=2,"Dry:","") ->  | I52: =IF(Flue_Type=1,IF(Flue_Measure_Basis=1,"",F54*MoThACr*Combustion!AD40/O63),IF(Flue_Measure_Basis=1,"",(MpCb)/Combustion!D7/Main!O63)) ->  | J52: =IF(Flue_Measure_Basis=1,"","% vol") ->  | L52: =IF(ISBLANK(F52),"¬","") ->  | N52: MpH2OF | O52: 3.01 | P52: % | AA52: =IF(Flue_Type=2,F54*H30*Combustion!AD40/Main!O63,F52) -> 8.6 | AB52: =IF(Flue_Type=1,(Main!E19-Main!E29)/Combustion!D7/(Main!O60+Main!H30*(Combustion!AE40+F54/100)),F52) -> 10.9277651
C53: Carbon Monoxide in Flue: | E53: =IF(Flue_Measure_Basis=1,"Dry:","Wet:") -> Dry: | F53: 50 | L53: =IF(ISBLANK(F53),"¬","") ->  | N53: MpAsF | O53: 6.55 | P53: %
C54: Excess Air: | F54: =XpA -> 67.81720495 | G54: % vol | N54: MpUbC | O54: =F15*HHVF/(14500*Unit_Preference_Energy/Unit_Preference_Mass) -> 0.3889655172 | P54: %
C55: Actual Dry Air: | F55: =MqDA*10000 -> 12.70753931 | G55: =F28 -> lb/ 10,000 Btu | I55: Total Wet Flue Gas: | K55: =MqFg*10000 -> 13.98031689 | L55: =G59 -> lb/ 10,000 Btu | N55: HHVF | O55: =F14 -> 14100 | P55: energy/mass
C56: H2O from Dry Air: | F56: =MqWA*10000 -> 0.3081133599 | G56: =G55 -> lb/ 10,000 Btu | I56: H2O in Wet Flue Gas: | K56: =MqWFg*10000 -> 0.8960795992 | L56: =L55 -> lb/ 10,000 Btu | N56: MoThACr | O56: =MqThACr/Combustion!D40*HHVF -> 0.3686447423 | P56: moles/mass fuel
C57: Additional H2O from Dry Air: | F57: =MqWAd*10000 -> 0 | G57: =G56 -> lb/ 10,000 Btu | I57: H2O Percent in Wet Gas: | K57: =MpWFg -> 6.409580029 | L57: % by mass | N57: MqFgF | O57: =(100-MpAsF-MpUbC)/100/HHVF -> 6.600073368e-05 | P57: mass/ energy
C58: H2O from Fuel: | F58: =MqWF*10000 -> 0.3046568785 | G58: =G57 -> lb/ 10,000 Btu | I58: Dry Flue Gas: | K58: =MqDFg*10000 -> 13.08423729 | L58: =L56 -> lb/ 10,000 Btu | N58: MqWF | O58: =I26/100/HHVF -> 3.046568785e-05 | P58: mass/ energy
C59: Wet Gas from Fuel: | F59: =MqFgF*10000 -> 0.6600073368 | G59: =G58 -> lb/ 10,000 Btu | N59: MqWH2F | O59: =1/D20*Combustion!$D$39*MpH2F/100/HHVF -> 2.833093608e-05 | P59: mass/energy
N60: MoDPc | O60: =(E19-MpUbC)/100/Combustion!D7+Main!E21/100/Combustion!D36+Main!E23/100/Combustion!D10 -> 0.06747348112 | P60: moles/mass fuel
C61: Ash Data Section | N61: MoWPc | O61: =O60+E20/100/Combustion!D8+Main!E24/100/Combustion!D39+Main!F47/Combustion!D39 -> 0.0913180021 | P61: moles/mass fuel
C62: Any Ash Residue? | N62: MoWA | O62: =F46*Combustion!D40/Combustion!D39 -> 0.03898015988 | P62: moles H2O/moles dry air
F63: Ash Spilt % | N63: MoDFg | O63: =O60+MoThACr*(Combustion!AE40+Main!F54/100) -> 0.6089064561 | P63: moles of dry gas/mass fuel
C64: Bottom Ash: | F64: 10 | G64: =IF(AND(F$67<>100,Ash_Res=1),"¬","") ->  | H64: =IF(OR(ISBLANK(F64),ISBLANK(I64)=FALSE),"",IF(F64=0,"","Entry Req. >>")) ->  | I64: 2000 | J64: =IF(Units_Pref=1,"°F","°C") -> °F | K64: ="default = "&IF(Units_Pref=1," 2000 °F"," 1100 °C") -> default = 2000 °F | N64: MoFg | O64: =MoWPc+MoThACr*(Combustion!AE40+Main!O62+XpA/100*(1+MoWA)) -> 0.6568660258 | P64: moles of wet gas/mass fuel | AA64: =IF(Units_Pref=AA$9,$I64,$I64*9/5+32) -> 2000 | AB64: =IF(Units_Pref=AB$9,$I64,($I64-32)*5/9) -> 1093.333333
C65: Economizer Ash: | F65: 10 | G65: =IF(AND(F$67<>100,Ash_Res=1),"¬","") ->  | H65: =IF(OR(ISBLANK(F65),ISBLANK(I65)=FALSE),"",IF(F65=0,"","Entry Req. >>")) ->  | I65: 390.2 | J65: =IF(Units_Pref=1,"°F","°C") -> °F | K65: ="default = "&IF(Units_Pref=1, TFgLvCr & " °F",ROUND((TFgLvCr-32)*5/9,0) & " °C") -> default = 432 °F | N65: MqDFg | O65: =MqFg-MqWFg -> 0.001308423729 | P65: mass/ energy | AA65: =IF(Units_Pref=AA$9,$I65,$I65*9/5+32) -> 390.2 | AB65: =IF(Units_Pref=AB$9,$I65,($I65-32)*5/9) -> 199
C66: Fly/Precipitator/Baghouse Ash: | F66: 80 | G66: =IF(AND(F$67<>100,Ash_Res=1),"¬","") ->  | H66: =IF(OR(ISBLANK(F66),ISBLANK(I66)=FALSE),"",IF(F66=0,"","Entry Req. >>")) ->  | I66: 390.2 | J66: =IF(Units_Pref=1,"°F","°C") -> °F | K66: ="default = "&IF(Units_Pref=1, TFgLvCr & " °F",ROUND((TFgLvCr-32)*5/9,0) & " °C") -> default = 432 °F | N66: PpWvA | O66: =IF(Moist_Basis=1,(PsWvTz-((14.69594878-PsWvTz)*(O36-Twb)/(2830-1.44*Twb)))*Unit_Preference_Pressure,0.01*RHM*PsWvTz) -> 0.5513768058 | P66: pressure | AA66: =IF(Units_Pref=AA$9,$I66,$I66*9/5+32) -> 390.2 | AB66: =IF(Units_Pref=AB$9,$I66,($I66-32)*5/9) -> 199
C67: Total Ash | F67: =SUM(F64:F66) -> 100 | G67: % | N67: MFrWDA | O67: =0.622*PpWvA/(Pa-PpWvA) -> 0.02424650063 | P67: mass H2O/mass dry air
F68: =IF(OR(F67=100,Ash_Res=2),"","↑ Please ensure the total add up is equal to 100%!") ->  | N68: Pa | O68: =14.69594878*Unit_Preference_Pressure -> 14.69594878 | P68: pressure
C69: Unburned Carbon Residual: | F69: =F15*100/(14500*Unit_Preference_Energy/Unit_Preference_Mass) -> 0.00275862069 | G69: =G59 -> lb/ 10,000 Btu | N69: MFrWAdz | O69: =F47 -> 0 | P69: mass/mass fuel
C70: Ash Residue in Fuel: | F70: =MqRs*10000 -> 0.04645390071 | G70: =G69 -> lb/ 10,000 Btu | N70: XpA | O70: =IF(Flue_Type=1,IF(Flue_Measure_Basis=1,100*F52*(O60+Combustion!AE40*MoThACr)/MoThACr/(Combustion!AD40*100-F52),(100*F52*(O61+(Combustion!AE40+O62)*MoThACr))/MoThACr/(Combustion!AD40*100-F52*(1+O62))),IF(Flue_Measure_Basis=1,(((MpCb)/Combustion!D7*(1/Main!F52)-O60)/MoThACr-Combustion!AE40)*100,(((MpCb)/Combustion!D7*(1/Main!F52)-O61)/MoThACr-Combustion!AE40-O62)/(1+O62)*100)) -> 67.81720495 | P70: %
C71: Total Residue: | F71: =MqRs_all*10000 -> 0 | G71: =G70 -> lb/ 10,000 Btu | N71: MqDA | O71: =MqThACr*(1+XpA/100) -> 0.001270753931 | P71: mass/ energy
N72: MqWA | O72: =MFrWDA*MqDA -> 3.081133599e-05 | P72: mass/ energy
C73: Steam Generator / Boiler Section | N73: MqWAd | O73: =MFrWAdz/HHVF -> 0 | P73: mass/ energy
C74: Average Surface Temperature: | F74: 140 | G74: =IF(Units_Pref=1,"°F","°C") -> °F | L74: =IF(ISBLANK(F74),"¬","") ->  | N74: MqFg | O74: =MqDA+MqWA+MqFgF+MqWAd+MqWF -> 0.001398031689 | P74: mass/ energy | AA74: =IF(Units_Pref=AA$9,$F74,$F74*9/5+32) -> 140 | AB74: =IF(Units_Pref=AB$9,$F74,($F74-32)*5/9) -> 60
C75: Dimensions | N75: TMnAf | O75: =IF(Units_Pref=1,F74,F74*9/5+32) -> 140 | P75: °F | Q75: (°F as basis for boiler surf. temp)
C76: Height: | F76: 10 | G76: =IF(Units_Pref=1,"ft","m") -> ft | L76: =IF(ISBLANK(F76),"¬","") ->  | N76: MqWFg | O76: =MqWF+MqWH2F+MqWA+MqWAd -> 8.960795992e-05 | P76: mass/ energy | AA76: =IF(Units_Pref=AA$9,$F76,$F76/Unit_Preference_Length_SI) -> 10 | AB76: =IF(Units_Pref=AB$9,$F76,$F76*Unit_Preference_Length_SI) -> 3.048
C77: Length: | F77: 14 | G77: =IF(Units_Pref=1,"ft","m") -> ft | L77: =IF(ISBLANK(F77),"¬","") ->  | N77: MpWFg | O77: =100*MqWFg/MqFg -> 6.409580029 | P77: % mass | AA77: =IF(Units_Pref=AA$9,$F77,$F77/Unit_Preference_Length_SI) -> 14 | AB77: =IF(Units_Pref=AB$9,$F77,$F77*Unit_Preference_Length_SI) -> 4.2672
C78: Width: | F78: 12 | G78: =IF(Units_Pref=1,"ft","m") -> ft | L78: =IF(ISBLANK(F78),"¬","") ->  | N78: MFrRs | O78: =MpAsF/(100) -> 0.0655 | P78: mass/mass fuel | AA78: =IF(Units_Pref=AA$9,$F78,$F78/Unit_Preference_Length_SI) -> 12 | AB78: =IF(Units_Pref=AB$9,$F78,$F78*Unit_Preference_Length_SI) -> 3.6576
C79: Total Surface Area (excl. bottom area): | F79: =2*F76*(F77+F78)+F77*F78 -> 688 | G79: =IF(Units_Pref=1,"ft²","m²") -> ft² | H79: flat projected surface area | N79: MqRs | O79: =MpAsF/HHVF/100 -> 4.645390071e-06 | P79: mass/ energy
C80: Wind Velocity: | F80: 5 | G80: =IF(Units_Pref=1,"ft/s","m/s") -> ft/s | H80: ="default = " & (ROUND(1.67*Unit_Preference_Velocity,2) & IF(Units_Pref=1, " ft/s", " m/s")) -> default = 1.67 ft/s | L80: =IF(ISBLANK(F80),"¬","") ->  | N80: DVpCO | O80: =IF(Flue_Measure_Basis=1,IF(CO_Unit=1,F53*10^(-6)*100,F53),"-") -> 0.005 | P80: % vol | AA80: =IF(Units_Pref=AA$9,$F80,$F80/Unit_Preference_Length_SI) -> 5 | AB80: =IF(Units_Pref=AB$9,$F80,$F80*Unit_Preference_Length_SI) -> 1.524
N81: VpCO | O81: =IF(Flue_Measure_Basis=2,IF(CO_Unit=1,F53*10^(-6)*100,F53),"-") -> - | P81: % vol
B82: Losses | N82: QpLDFg | O82: =100*MqDFg*HDFgLvCr -> 11.2060823 | P82: %
C83: Dry Gas Loss: | F83: =QpLDFg -> 11.2060823 | G83: % | N83: HDFgLvCr | O83: =IF(V37<1000,(FG_C0+FG_C1*V37+FG_C2*V37^2+FG_C3*V37^3+FG_C4*V37^4+FG_C5*V37^5)-(FG_C0+FG_C1*V39+FG_C2*V39^2+FG_C3*V39^3+FG_C4*V39^4+FG_C5*V39^5),(FG_C0_1000+FG_C1_1000*V37+FG_C2_1000*V37^2+FG_C3_1000*V37^3+FG_C4_1000*V37^4+FG_C5_1000*V37^5)-(FG_C0_1000+FG_C1_1000*V39+FG_C2_1000*V39^2+FG_C3_1000*V39^3+FG_C4_1000*V39^4+FG_C5_1000*V39^5))*Unit_Preference_Energy/Unit_Preference_Mass -> 85.645667 | P83: energy/mass
C84: Water from H2 Combustion Loss: | F84: =QpLH2F -> 3.432574453 | G84: % | N84: HStLvCr | O84: =(H20_C0*TFgLvCr+H20_C1*TFgLvCr^2+H20_C2)*Unit_Preference_Energy/Unit_Preference_Mass -> 1256.599378 | P84: energy/mass
C85: Moisture in Fuel Loss: | F85: =QpLWF -> 0.4921614522 | G85: % | N85: QpLWF | O85: =100*MqWF*IF(Fuel_Type=8,HWvLvCr,(HStLvCr-HWRe)) -> 0.4921614522 | P85: %
C86: Moisture in Air Loss: | F86: =QpLWA -> 0.4977452647 | G86: % | N86: HWvLvCr | O86: =(subH20_C0*TFgLvCr+subH20_C1*TFgLvCr^2+subH20_C2*TFgLvCr^3+subH20_C3)*Unit_Preference_Energy/Unit_Preference_Mass -> 161.5461481 | P86: energy/mass
C87: Unburned Carbon in Residue Loss: | F87: =QpLUbC -> 0.4 | G87: % | N87: QpLWA | O87: =100*MFrWDA*(MqDA)*HWvLvCr -> 0.4977452647 | P87: %
C88: Carbon Monoxide in Flue Gas Loss: | F88: =QpLCO -> 0.02629120076 | G88: % | N88: HWRe | O88: =(O39-32)*Unit_Preference_Energy/Unit_Preference_Mass -> 45 | P88: energy/mass
C89: Sensible Heat of Residue Loss: | F89: =QpLRs -> 0 | G89: % | N89: QpLH2F | O89: =100*MqWH2F*(HStLvCr-HWRe) -> 3.432574453 | P89: %
C90: Surface Radiation & Convection Loss: | F90: =QrLSrc -> 0.06037005261 | G90: % | N90: QpLUbC | O90: =MpUbC*(14500*Unit_Preference_Energy/Unit_Preference_Mass)/HHVF -> 0.4 | P90: %
C91: Other Unaccounted Losses: | F91: 0.5 | G91: % | H91: default = 0.5% | L91: =IF(ISBLANK(F91),"¬","") ->  | N91: QpLCO | O91: =IF(Flue_Measure_Basis=1,DVpCO*MoDFg*Combustion!D12*(4347*Unit_Preference_Energy/Unit_Preference_Mass)/HHVF,VpCO*MoFg*Combustion!D12*(4347*Unit_Preference_Energy/Unit_Preference_Mass)/HHVF) -> 0.02629120076 | P91: %
C92: Manufacturers' Margins: | F92: 1 | G92: % | H92: default = 1% | L92: =IF(ISBLANK(F92),"¬","") ->  | N92: MqRs_all | O92: =IF(Ash_Res=1,SUM(F69:F70)/10000,0) -> 0 | P92: mass/ energy
C93: Summation of Losses | F93: =SUM(F83:F90)+OUL+ManM -> 17.61522472 | G93: % | N93: HRs_Btm | O93: =DR_C0*T_ashbtm+DR_C1*T_ashbtm^2-DR_C2*T_ashbtm^3-DR_C3 -> 515.61 | P93: energy/mass
N94: HRs_Econ | O94: =DR_C0*T_asheco+DR_C1*T_asheco^2-DR_C2*T_asheco^3-DR_C3 -> 64.38887334 | P94: energy/mass
B95: Credits | N95: HRs_Fly | O95: =DR_C0*T_ashfly+DR_C1*T_ashfly^2-DR_C2*T_ashfly^3-DR_C3 -> 64.38887334 | P95: energy/mass
C96: Entering Dry Air: | F96: =QpBDA -> 0.09156542445 | G96: % | N96: HRs_Re | O96: =DR_C0*Tre+DR_C1*Tre^2-DR_C2*Tre^3-DR_C3 -> 0.00328176681 | P96: energy/mass
C97: Moisture in Entering Air: | F97: =QpBWA -> 0.004110691621 | G97: % | N97: T_ashbtm | O97: =IF(Units_Pref=1,IF(ISBLANK(I64),2000,I64),IF(ISBLANK(I64),2000,I64*9/5+32)) -> 2000 | P97: °F | Q97: (°F as basis for bottom ash temp)
C98: Sensible Heat in Fuel: | F98: =100/(HHVF/Unit_Preference_Energy*Unit_Preference_Mass)*IF(Fuel_Type=1,(Hcoal-Hcoal_ref),IF(Fuel_Type=8,(HGF-HGF_ref),IF(Fuel_Type=9,0,(Hfo-Hfo_ref)))) -> 0.0105874669 | G98: % | N98: T_asheco | O98: =IF(Units_Pref=1,IF(ISBLANK(I65),TFgLvCr,I65),IF(ISBLANK(I65),TFgLvCr,I65*9/5+32)) -> 390.2 | P98: °F | Q98: (°F as basis for economizer ash temp)
C99: Summation of Credits | F99: =SUM(F96:F98) -> 0.106263583 | G99: % | N99: T_ashfly | O99: =IF(Units_Pref=1,IF(ISBLANK(I66),TFgLvCr,I66),IF(ISBLANK(I66),TFgLvCr,I66*9/5+32)) -> 390.2 | P99: °F | Q99: (°F as basis for fly ash temp)
N100: QpLRs | O100: =100*MqRs_all/100*(F64*(HRs_Btm-HRs_Re)+F65*(HRs_Econ-HRs_Re)+F66*(HRs_Fly-HRs_Re))*(Unit_Preference_Energy/Unit_Preference_Mass) -> 0 | P100: %
B101: Boiler Performance Parameter | N101: VA | O101: =IF(ISBLANK(F80),1.67,IF(Units_Pref=1,F80,F80/Unit_Preference_Length_SI)) -> 5 | P101: ft/s | Q101: (ft/s as basis for surface radiation & convection)
C102: Efficiency | F102: =100-F93+F99 -> 82.49103886 | G102: % | N102: Hca | O102: =MAX(0.2*(TMnAf-TMnA)^0.33,0.35*VA^0.8) -> 1.268364411 | P102: Btu/ft²hF
C103: Useful Output | F103: =F13*F14/10^6*F102/100 -> 127.9436013 | G103: =IF(Units_Pref=1,"MMBtu","MJ") -> MMBtu | N103: Tdi | O103: =IF((TMnAf-TMnA)<50,50,TMnAf-TMnA) -> 60 | P103: °F | Q103: (differential temp should be > 50°F)
C104: Air to Burners (wet) | F104: =(1+MFrWDA)*(1+XpA/100)*MqThACr*10000 -> 13.01565267 | G104: =IF(Units_Pref=1,"lb/ 10,000 Btu","kg/ 10,000 kJ") -> lb/ 10,000 Btu | N104: Hra | O104: =0.847+0.002367*Tdi+0.00000294*Tdi^2+0.00000000137*Tdi^3 -> 0.99989992 | P104: Btu/ft²hF
F105: =F104/10000*F13*F14/1000 -> 201.8727729 | G105: =IF(Units_Pref=1,",000 lb/h",",000 kg/h") -> ,000 lb/h | N105: Af | O105: =IF(Units_Pref=1,F79,F79/Unit_Preference_Length^2) -> 688 | P105: ft² | Q105: (ft² as basis for surface radiation & convection)
C106: Note: | N106: QrLSrc | O106: =(Hca+Hra)*Af*(Tdi)/(HHVF/Unit_Preference_Energy*Unit_Preference_Mass)/(MrF/Unit_Preference_Mass)*100 -> 0.06037005261 | P106: %
C107: The efficiency test does not account for: | N107: MrF | O107: =F13 -> 11000 | P107: mass/time
C108: 1) Standby Losses. Efficiency test is to be carried out when the boiler is operating under steady load. | N108: OUL | O108: =IF(ISBLANK(F91),0.5,F91) -> 0.5 | P108: %
C109: 2) Blowdown Loss. | N109: ManM | O109: =IF(ISBLANK(F92),1,F92) -> 1 | P109: %
C110: 3) Soot Blower Steam. | N110: HDAEn | O110: =(DG_C0+DG_C1*TK_TMnAEn+DG_C2*TK_TMnAEn^2+DG_C3*TK_TMnAEn^3+DG_C4*TK_TMnAEn^4+DG_C5*TK_TMnAEn^5)-(DG_C0+DG_C1*TK_Tre+DG_C2*TK_Tre^2+DG_C3*TK_Tre^3+DG_C4*TK_Tre^4+DG_C5*TK_Tre^5) -> 0.7205598362 | P110: energy/mass | Y110: (btu/lb as basis)
C111: 4) Auxiliary Equipment Energy Consumption. Efficiency test does not account for energy usage by burners, fans and pumps | N111: TK_TMnAEn | O111: =(TMnAEn+459.7)/1.8 -> 299.8333333 | P111: K
N112: QpBDA | O112: =100*(MqDA/Unit_Preference_Mass*Unit_Preference_Energy)*HDAEn -> 0.09156542445 | P112: %
H113: =C83 -> Dry Gas Loss: | I113: =ROUND(F83,2) & " %" -> 11.21 % | N113: HWvEn | O113: =(subH20_C0*TMnAEn+subH20_C1*TMnAEn^2+subH20_C2*TMnAEn^3+subH20_C3)-(subH20_C0*Tre+subH20_C1*Tre^2+subH20_C2*Tre^3+subH20_C3) -> 1.334149101 | P113: energy/mass | Y113: (btu/lb as basis)
H114: =C84 -> Water from H2 Combustion Loss: | I114: =ROUND(F84,2) & " %" -> 3.43 % | N114: TK_Tre | O114: =(Tre+459.7)/1.8 -> 298.1666667 | P114: K
H115: =C85 -> Moisture in Fuel Loss: | I115: =ROUND(F85,2) & " %" -> 0.49 % | N115: QpBWA | O115: =100*MFrWDA*(MqDA/Unit_Preference_Mass*Unit_Preference_Energy)*HWvEn -> 0.004110691621 | P115: %
H116: =C86 -> Moisture in Air Loss: | I116: =ROUND(F86,2) & " %" -> 0.5 % | N116: Hfo | O116: =-30.016-0.11426*API+0.373*Tfuel+(0.00143)*API*Tfuel+((0.0002184)+(0.0000007)*API)*(Tfuel)^2 -> 940.6476901 | P116: energy/mass | R116: Hfo_ref | T116: =-30.016-0.11426*API+0.373*Tre+(0.00143)*API*Tre+((0.0002184)+(0.0000007)*API)*(Tre)^2 -> 0.06089528377 | U116: energy/mass | Y116: (btu/lb as basis)
H117: =C88 -> Carbon Monoxide in Flue Gas Loss: | I117: =ROUND(F88,2) & " %" -> 0.03 % | N117: API | O117: =(141.5-131.5*Sg)/Sg -> 203338.9459
N118: Dn | O118: =VLOOKUP(CHOOSE(Fuel_Type,Fuel!B4,Fuel!B5,Fuel!B6,Fuel!B7,Fuel!B8,Fuel!B9,Fuel!B10,Fuel!B11,Fuel!B12),Fuel_List,2,FALSE) -> 0.043395 | P118: mass/volume
N119: Sg | O119: =Dn/62.4 -> 0.0006954326923 | P119: mass/mass
F120: =C90 -> Surface Radiation & Convection Loss: | H120: =ROUND(F90,2) & " %" -> 0.06 % | N120: HGF | O120: =0.4693*Tfuel+(0.00017523)*Tfuel^2+(0.00000004326)*Tfuel^3-37.2 -> 1.48762112 | P120: energy/mass | R120: HGF_ref | T120: =0.4693*Tre+(0.00017523)*Tre^2+(0.00000004326)*Tre^3-37.2 -> -0.00521171242 | U120: energy/mass | Y120: (btu/lb as basis)
J121: Overall Efficiency: | N121: Hcoal | O121: =((MpCb+MpUbC)*HFc+MpH2OF*HW+MpAsF*HRs)/100 -> 0.5662928 | P121: energy/mass | R121: Hcoal_ref | T121: =((MpCb+MpUbC)*HFc_ref+MpH2OF*HW_ref+MpAsF*HRs_ref)/100 -> 0.0001454405 | U121: energy/mass | Y121: (btu/lb as basis)
J122: =F102 -> 82.49103886 | K122: % | N122: HFc | O122: =0.152*Tfuel+(0.000195)*Tfuel^2-12.86 -> 0.548 | P122: energy/mass | R122: HFc_ref | T122: =0.152*Tre+(0.000195)*Tre^2-12.86 -> 0.000155 | U122: energy/mass | Y122: (btu/lb as basis)
E123: Fuel Input | N123: HRs | O123: =0.17*Tfuel+(0.00008)*Tfuel^2-13.564 -> 0.548 | P123: energy/mass | R123: HRs_ref | T123: =0.17*Tre+(0.00008)*Tre^2-13.564 -> 0.00032 | U123: energy/mass | Y123: (btu/lb as basis)
E124: =ROUND(F13,0) -> 11000 | F124: =G13 -> lb/h | J124: Steam Output | N124: HW | O124: =Tfuel-77 -> 3 | P124: energy/mass | R124: HW_ref | T124: =Tre-77 -> 0 | U124: energy/mass | Y124: (btu/lb as basis)
J125: =ROUND(F103,0) & " " & G103 -> 128 MMBtu
E129: Air Input
E130: =ROUND(F105,0) -> 202 | F130: =G105 -> ,000 lb/h
J131: =C87 -> Unburned Carbon in Residue Loss: | K131: =ROUND(F87,2) & " %" -> 0.4 %
J132: =C89 -> Sensible Heat of Residue Loss: | K132: =ROUND(F89,2) & " %" -> 0 %
J133: =C91 -> Other Unaccounted Losses: | K133: =ROUND(F91,2) & " %" -> 0.5 %
F134: =C96 -> Entering Dry Air: | G134: =ROUND(F96,2) & " %" -> 0.09 % | J134: =C92 -> Manufacturers' Margins: | K134: =ROUND(F92,2) & " %" -> 1 %
F135: =C97 -> Moisture in Entering Air: | G135: =ROUND(F97,2) & " %" -> 0 %
F136: Sensible Heat in Fuel: | G136: 0.01 %
C138: Copy Rights: Not to be copied or distributed without specific permission from Inveno Engineering LLC; kelly.paffel@invenoeng.com

Sheet Blank for Calculation
A1: User Calculations Sheet
A3: This is a blank sheet provided for the user to make notes, carry out calculations etc.

Sheet Excess Air
B1: Percent of Excess Air based on Oxygen Content in Flue Gas
B2: Oxygen Content in Flue Gas | C2: Excess Air Percent
B3: 0 | C3: =100*B3*(MoDPc+Combustion!$AE$40*MoThACr)/MoThACr/(Combustion!$AD$40*100-B3*100) -> 0
B4: 0.001 | C4: =100*B4*(MoDPc+Combustion!$AE$40*MoThACr)/MoThACr/(Combustion!$AD$40*100-B4*100) -> 0.004670302106
B5: 0.002 | C5: =100*B5*(MoDPc+Combustion!$AE$40*MoThACr)/MoThACr/(Combustion!$AD$40*100-B5*100) -> 0.009385627852
B6: 0.003 | C6: =100*B6*(MoDPc+Combustion!$AE$40*MoThACr)/MoThACr/(Combustion!$AD$40*100-B6*100) -> 0.01414663146
B7: 0.004 | C7: =100*B7*(MoDPc+Combustion!$AE$40*MoThACr)/MoThACr/(Combustion!$AD$40*100-B7*100) -> 0.01895397989
B8: 0.005 | C8: =100*B8*(MoDPc+Combustion!$AE$40*MoThACr)/MoThACr/(Combustion!$AD$40*100-B8*100) -> 0.02380835315
B9: 0.006 | C9: =100*B9*(MoDPc+Combustion!$AE$40*MoThACr)/MoThACr/(Combustion!$AD$40*100-B9*100) -> 0.02871044462
B10: 0.007 | C10: =100*B10*(MoDPc+Combustion!$AE$40*MoThACr)/MoThACr/(Combustion!$AD$40*100-B10*100) -> 0.03366096137
B11: 0.008 | C11: =100*B11*(MoDPc+Combustion!$AE$40*MoThACr)/MoThACr/(Combustion!$AD$40*100-B11*100) -> 0.03866062453
B12: 0.009 | C12: =100*B12*(MoDPc+Combustion!$AE$40*MoThACr)/MoThACr/(Combustion!$AD$40*100-B12*100) -> 0.04371016958
B13: 0.01 | C13: =100*B13*(MoDPc+Combustion!$AE$40*MoThACr)/MoThACr/(Combustion!$AD$40*100-B13*100) -> 0.04881034679
B14: 0.011 | C14: =100*B14*(MoDPc+Combustion!$AE$40*MoThACr)/MoThACr/(Combustion!$AD$40*100-B14*100) -> 0.05396192154
B15: 0.012 | C15: =100*B15*(MoDPc+Combustion!$AE$40*MoThACr)/MoThACr/(Combustion!$AD$40*100-B15*100) -> 0.0591656747
B16: 0.013 | C16: =100*B16*(MoDPc+Combustion!$AE$40*MoThACr)/MoThACr/(Combustion!$AD$40*100-B16*100) -> 0.06442240305
B17: 0.014 | C17: =100*B17*(MoDPc+Combustion!$AE$40*MoThACr)/MoThACr/(Combustion!$AD$40*100-B17*100) -> 0.06973291967
B18: 0.015 | C18: =100*B18*(MoDPc+Combustion!$AE$40*MoThACr)/MoThACr/(Combustion!$AD$40*100-B18*100) -> 0.07509805439
B19: 0.016 | C19: =100*B19*(MoDPc+Combustion!$AE$40*MoThACr)/MoThACr/(Combustion!$AD$40*100-B19*100) -> 0.08051865416
B20: 0.017 | C20: =100*B20*(MoDPc+Combustion!$AE$40*MoThACr)/MoThACr/(Combustion!$AD$40*100-B20*100) -> 0.08599558355
B21: 0.018 | C21: =100*B21*(MoDPc+Combustion!$AE$40*MoThACr)/MoThACr/(Combustion!$AD$40*100-B21*100) -> 0.09152972521
B22: 0.019 | C22: =100*B22*(MoDPc+Combustion!$AE$40*MoThACr)/MoThACr/(Combustion!$AD$40*100-B22*100) -> 0.09712198029
B23: 0.02 | C23: =100*B23*(MoDPc+Combustion!$AE$40*MoThACr)/MoThACr/(Combustion!$AD$40*100-B23*100) -> 0.102773269
B24: 0.021 | C24: =100*B24*(MoDPc+Combustion!$AE$40*MoThACr)/MoThACr/(Combustion!$AD$40*100-B24*100) -> 0.108484531
B25: 0.022 | C25: =100*B25*(MoDPc+Combustion!$AE$40*MoThACr)/MoThACr/(Combustion!$AD$40*100-B25*100) -> 0.1142567262
B26: 0.023 | C26: =100*B26*(MoDPc+Combustion!$AE$40*MoThACr)/MoThACr/(Combustion!$AD$40*100-B26*100) -> 0.1200908349
B27: 0.024 | C27: =100*B27*(MoDPc+Combustion!$AE$40*MoThACr)/MoThACr/(Combustion!$AD$40*100-B27*100) -> 0.1259878586
B28: 0.025 | C28: =100*B28*(MoDPc+Combustion!$AE$40*MoThACr)/MoThACr/(Combustion!$AD$40*100-B28*100) -> 0.1319488205
B29: 0.026 | C29: =100*B29*(MoDPc+Combustion!$AE$40*MoThACr)/MoThACr/(Combustion!$AD$40*100-B29*100) -> 0.1379747662
B30: 0.027 | C30: =100*B30*(MoDPc+Combustion!$AE$40*MoThACr)/MoThACr/(Combustion!$AD$40*100-B30*100) -> 0.1440667641
B31: 0.028 | C31: =100*B31*(MoDPc+Combustion!$AE$40*MoThACr)/MoThACr/(Combustion!$AD$40*100-B31*100) -> 0.1502259063
B32: 0.029 | C32: =100*B32*(MoDPc+Combustion!$AE$40*MoThACr)/MoThACr/(Combustion!$AD$40*100-B32*100) -> 0.156453309
B33: 0.03 | C33: =100*B33*(MoDPc+Combustion!$AE$40*MoThACr)/MoThACr/(Combustion!$AD$40*100-B33*100) -> 0.1627501132
B34: 0.031 | C34: =100*B34*(MoDPc+Combustion!$AE$40*MoThACr)/MoThACr/(Combustion!$AD$40*100-B34*100) -> 0.1691174857
B35: 0.032 | C35: =100*B35*(MoDPc+Combustion!$AE$40*MoThACr)/MoThACr/(Combustion!$AD$40*100-B35*100) -> 0.1755566193
B36: 0.033 | C36: =100*B36*(MoDPc+Combustion!$AE$40*MoThACr)/MoThACr/(Combustion!$AD$40*100-B36*100) -> 0.1820687342
B37: 0.034 | C37: =100*B37*(MoDPc+Combustion!$AE$40*MoThACr)/MoThACr/(Combustion!$AD$40*100-B37*100) -> 0.1886550782
B38: 0.035 | C38: =100*B38*(MoDPc+Combustion!$AE$40*MoThACr)/MoThACr/(Combustion!$AD$40*100-B38*100) -> 0.1953169277
B39: 0.036 | C39: =100*B39*(MoDPc+Combustion!$AE$40*MoThACr)/MoThACr/(Combustion!$AD$40*100-B39*100) -> 0.2020555885
B40: 0.037 | C40: =100*B40*(MoDPc+Combustion!$AE$40*MoThACr)/MoThACr/(Combustion!$AD$40*100-B40*100) -> 0.2088723968
B41: 0.038 | C41: =100*B41*(MoDPc+Combustion!$AE$40*MoThACr)/MoThACr/(Combustion!$AD$40*100-B41*100) -> 0.21576872
B42: 0.039 | C42: =100*B42*(MoDPc+Combustion!$AE$40*MoThACr)/MoThACr/(Combustion!$AD$40*100-B42*100) -> 0.2227459575
B43: 0.04 | C43: =100*B43*(MoDPc+Combustion!$AE$40*MoThACr)/MoThACr/(Combustion!$AD$40*100-B43*100) -> 0.2298055416
B44: 0.041 | C44: =100*B44*(MoDPc+Combustion!$AE$40*MoThACr)/MoThACr/(Combustion!$AD$40*100-B44*100) -> 0.236948939
B45: 0.042 | C45: =100*B45*(MoDPc+Combustion!$AE$40*MoThACr)/MoThACr/(Combustion!$AD$40*100-B45*100) -> 0.244177651
B46: 0.043 | C46: =100*B46*(MoDPc+Combustion!$AE$40*MoThACr)/MoThACr/(Combustion!$AD$40*100-B46*100) -> 0.2514932153
B47: 0.044 | C47: =100*B47*(MoDPc+Combustion!$AE$40*MoThACr)/MoThACr/(Combustion!$AD$40*100-B47*100) -> 0.2588972065
B48: 0.045 | C48: =100*B48*(MoDPc+Combustion!$AE$40*MoThACr)/MoThACr/(Combustion!$AD$40*100-B48*100) -> 0.2663912378
B49: 0.046 | C49: =100*B49*(MoDPc+Combustion!$AE$40*MoThACr)/MoThACr/(Combustion!$AD$40*100-B49*100) -> 0.2739769616
B50: 0.047 | C50: =100*B50*(MoDPc+Combustion!$AE$40*MoThACr)/MoThACr/(Combustion!$AD$40*100-B50*100) -> 0.2816560712
B51: 0.048 | C51: =100*B51*(MoDPc+Combustion!$AE$40*MoThACr)/MoThACr/(Combustion!$AD$40*100-B51*100) -> 0.2894303016
B52: 0.049 | C52: =100*B52*(MoDPc+Combustion!$AE$40*MoThACr)/MoThACr/(Combustion!$AD$40*100-B52*100) -> 0.2973014314
B53: 0.05 | C53: =100*B53*(MoDPc+Combustion!$AE$40*MoThACr)/MoThACr/(Combustion!$AD$40*100-B53*100) -> 0.3052712834
B54: 0.051 | C54: =100*B54*(MoDPc+Combustion!$AE$40*MoThACr)/MoThACr/(Combustion!$AD$40*100-B54*100) -> 0.3133417268
B55: 0.052 | C55: =100*B55*(MoDPc+Combustion!$AE$40*MoThACr)/MoThACr/(Combustion!$AD$40*100-B55*100) -> 0.3215146781
B56: 0.053 | C56: =100*B56*(MoDPc+Combustion!$AE$40*MoThACr)/MoThACr/(Combustion!$AD$40*100-B56*100) -> 0.3297921027
B57: 0.054 | C57: =100*B57*(MoDPc+Combustion!$AE$40*MoThACr)/MoThACr/(Combustion!$AD$40*100-B57*100) -> 0.3381760168
B58: 0.055 | C58: =100*B58*(MoDPc+Combustion!$AE$40*MoThACr)/MoThACr/(Combustion!$AD$40*100-B58*100) -> 0.3466684885
B59: 0.056 | C59: =100*B59*(MoDPc+Combustion!$AE$40*MoThACr)/MoThACr/(Combustion!$AD$40*100-B59*100) -> 0.3552716403
B60: 0.057 | C60: =100*B60*(MoDPc+Combustion!$AE$40*MoThACr)/MoThACr/(Combustion!$AD$40*100-B60*100) -> 0.3639876498
B61: 0.058 | C61: =100*B61*(MoDPc+Combustion!$AE$40*MoThACr)/MoThACr/(Combustion!$AD$40*100-B61*100) -> 0.3728187526
B62: 0.059 | C62: =100*B62*(MoDPc+Combustion!$AE$40*MoThACr)/MoThACr/(Combustion!$AD$40*100-B62*100) -> 0.3817672435
B63: 0.06 | C63: =100*B63*(MoDPc+Combustion!$AE$40*MoThACr)/MoThACr/(Combustion!$AD$40*100-B63*100) -> 0.3908354786
B64: 0.061 | C64: =100*B64*(MoDPc+Combustion!$AE$40*MoThACr)/MoThACr/(Combustion!$AD$40*100-B64*100) -> 0.4000258777
B65: 0.062 | C65: =100*B65*(MoDPc+Combustion!$AE$40*MoThACr)/MoThACr/(Combustion!$AD$40*100-B65*100) -> 0.4093409262
B66: 0.063 | C66: =100*B66*(MoDPc+Combustion!$AE$40*MoThACr)/MoThACr/(Combustion!$AD$40*100-B66*100) -> 0.4187831774
B67: 0.064 | C67: =100*B67*(MoDPc+Combustion!$AE$40*MoThACr)/MoThACr/(Combustion!$AD$40*100-B67*100) -> 0.4283552546
B68: 0.065 | C68: =100*B68*(MoDPc+Combustion!$AE$40*MoThACr)/MoThACr/(Combustion!$AD$40*100-B68*100) -> 0.438059854
B69: 0.066 | C69: =100*B69*(MoDPc+Combustion!$AE$40*MoThACr)/MoThACr/(Combustion!$AD$40*100-B69*100) -> 0.4478997469
B70: 0.067 | C70: =100*B70*(MoDPc+Combustion!$AE$40*MoThACr)/MoThACr/(Combustion!$AD$40*100-B70*100) -> 0.4578777823
B71: 0.068 | C71: =100*B71*(MoDPc+Combustion!$AE$40*MoThACr)/MoThACr/(Combustion!$AD$40*100-B71*100) -> 0.4679968899
B72: 0.069 | C72: =100*B72*(MoDPc+Combustion!$AE$40*MoThACr)/MoThACr/(Combustion!$AD$40*100-B72*100) -> 0.4782600827
B73: 0.07 | C73: =100*B73*(MoDPc+Combustion!$AE$40*MoThACr)/MoThACr/(Combustion!$AD$40*100-B73*100) -> 0.4886704603
B74: 0.071 | C74: =100*B74*(MoDPc+Combustion!$AE$40*MoThACr)/MoThACr/(Combustion!$AD$40*100-B74*100) -> 0.4992312117
B75: 0.072 | C75: =100*B75*(MoDPc+Combustion!$AE$40*MoThACr)/MoThACr/(Combustion!$AD$40*100-B75*100) -> 0.5099456187
B76: 0.073 | C76: =100*B76*(MoDPc+Combustion!$AE$40*MoThACr)/MoThACr/(Combustion!$AD$40*100-B76*100) -> 0.5208170594
B77: 0.074 | C77: =100*B77*(MoDPc+Combustion!$AE$40*MoThACr)/MoThACr/(Combustion!$AD$40*100-B77*100) -> 0.5318490116
B78: 0.075 | C78: =100*B78*(MoDPc+Combustion!$AE$40*MoThACr)/MoThACr/(Combustion!$AD$40*100-B78*100) -> 0.5430450564
B79: 0.076 | C79: =100*B79*(MoDPc+Combustion!$AE$40*MoThACr)/MoThACr/(Combustion!$AD$40*100-B79*100) -> 0.5544088825
B80: 0.077 | C80: =100*B80*(MoDPc+Combustion!$AE$40*MoThACr)/MoThACr/(Combustion!$AD$40*100-B80*100) -> 0.5659442899
B81: 0.078 | C81: =100*B81*(MoDPc+Combustion!$AE$40*MoThACr)/MoThACr/(Combustion!$AD$40*100-B81*100) -> 0.5776551941
B82: 0.079 | C82: =100*B82*(MoDPc+Combustion!$AE$40*MoThACr)/MoThACr/(Combustion!$AD$40*100-B82*100) -> 0.5895456308
B83: 0.08 | C83: =100*B83*(MoDPc+Combustion!$AE$40*MoThACr)/MoThACr/(Combustion!$AD$40*100-B83*100) -> 0.6016197603
B84: 0.081 | C84: =100*B84*(MoDPc+Combustion!$AE$40*MoThACr)/MoThACr/(Combustion!$AD$40*100-B84*100) -> 0.6138818725
B85: 0.082 | C85: =100*B85*(MoDPc+Combustion!$AE$40*MoThACr)/MoThACr/(Combustion!$AD$40*100-B85*100) -> 0.626336392
B86: 0.083 | C86: =100*B86*(MoDPc+Combustion!$AE$40*MoThACr)/MoThACr/(Combustion!$AD$40*100-B86*100) -> 0.6389878831
B87: 0.084 | C87: =100*B87*(MoDPc+Combustion!$AE$40*MoThACr)/MoThACr/(Combustion!$AD$40*100-B87*100) -> 0.6518410559
B88: 0.085 | C88: =100*B88*(MoDPc+Combustion!$AE$40*MoThACr)/MoThACr/(Combustion!$AD$40*100-B88*100) -> 0.6649007718
B89: 0.086 | C89: =100*B89*(MoDPc+Combustion!$AE$40*MoThACr)/MoThACr/(Combustion!$AD$40*100-B89*100) -> 0.6781720495
B90: 0.087 | C90: =100*B90*(MoDPc+Combustion!$AE$40*MoThACr)/MoThACr/(Combustion!$AD$40*100-B90*100) -> 0.6916600719
B91: 0.088 | C91: =100*B91*(MoDPc+Combustion!$AE$40*MoThACr)/MoThACr/(Combustion!$AD$40*100-B91*100) -> 0.7053701925
B92: 0.089 | C92: =100*B92*(MoDPc+Combustion!$AE$40*MoThACr)/MoThACr/(Combustion!$AD$40*100-B92*100) -> 0.7193079426
B93: 0.09 | C93: =100*B93*(MoDPc+Combustion!$AE$40*MoThACr)/MoThACr/(Combustion!$AD$40*100-B93*100) -> 0.7334790385
B94: 0.091 | C94: =100*B94*(MoDPc+Combustion!$AE$40*MoThACr)/MoThACr/(Combustion!$AD$40*100-B94*100) -> 0.7478893898
B95: 0.092 | C95: =100*B95*(MoDPc+Combustion!$AE$40*MoThACr)/MoThACr/(Combustion!$AD$40*100-B95*100) -> 0.7625451072
B96: 0.093 | C96: =100*B96*(MoDPc+Combustion!$AE$40*MoThACr)/MoThACr/(Combustion!$AD$40*100-B96*100) -> 0.7774525113
B97: 0.094 | C97: =100*B97*(MoDPc+Combustion!$AE$40*MoThACr)/MoThACr/(Combustion!$AD$40*100-B97*100) -> 0.7926181418
B98: 0.095 | C98: =100*B98*(MoDPc+Combustion!$AE$40*MoThACr)/MoThACr/(Combustion!$AD$40*100-B98*100) -> 0.8080487666
B99: 0.096 | C99: =100*B99*(MoDPc+Combustion!$AE$40*MoThACr)/MoThACr/(Combustion!$AD$40*100-B99*100) -> 0.8237513926
B100: 0.097 | C100: =100*B100*(MoDPc+Combustion!$AE$40*MoThACr)/MoThACr/(Combustion!$AD$40*100-B100*100) -> 0.8397332757
B101: 0.098 | C101: =100*B101*(MoDPc+Combustion!$AE$40*MoThACr)/MoThACr/(Combustion!$AD$40*100-B101*100) -> 0.8560019321
B102: 0.099 | C102: =100*B102*(MoDPc+Combustion!$AE$40*MoThACr)/MoThACr/(Combustion!$AD$40*100-B102*100) -> 0.8725651506
B103: 0.1 | C103: =100*B103*(MoDPc+Combustion!$AE$40*MoThACr)/MoThACr/(Combustion!$AD$40*100-B103*100) -> 0.8894310041
B104: Copy Rights: Not to be copied or distributed without specific permission from Inveno Engineering LLC; kelly.paffel@invenoeng.com

Sheet Fuel
B2: Fuel | C2: Density
C3: lb/ft3 | D3: kg/m3
B4: Coal
B5: Diesel | C5: 3.527 | D5: =C5*16.01846337 -> 56.49712031
B6: Fuel No.2 | C6: 57.4 | D6: 919.4597974
B7: Fuel No.6 | C7: 59.9 | D7: 959.5059559
B8: Gasoline | C8: 44.9 | D8: 719.2290053
B9: Heavy Fuel oil | C9: 58 | D9: 929.0708755
B10: Kerosene | C10: 49.9 | D10: 799.3213222
B11: Natural Gas | C11: 0.043395 | D11: 0.6951212179
B12: Copy Rights: Not to be copied or distributed without specific permission from Inveno Engineering LLC; kelly.paffel@invenoeng.com

Sheet Combustion
B1: 1 | C1: 2 | D1: 3 | E1: 4 | F1: 5 | G1: 6 | H1: 7 | I1: 8 | J1: 9 | K1: 10 | L1: 11 | M1: 12 | N1: 13 | O1: 14 | P1: 15 | Q1: 16 | R1: 17 | S1: 18 | T1: 19 | U1: 20 | V1: 21 | W1: 22 | X1: 23 | Y1: 24 | Z1: 25 | AA1: 26 | AB1: 27 | AC1: 28 | AD1: 29 | AE1: 30 | AF1: 31
A2: (Source) Table 1 : Combustion Constants - Combustion Engineering Chapter 10
H3: Heat of Combustion c | L3: ft³ per ft³ of Combustible | S3: lb per lb of Combustible | AA3: Elemental Breakdown
A4: No. | B4: Substance | C4: Formula | D4: Molecular Weight a | E4: Density b (lb/ft³) | F4: Specific Volume b (ft³/lb) | G4: Specific Gravity b (air=1) | H4: Btu per ft³ | J4: Btu per lb | L4: Required for Combustion | O4: Flue Products | S4: Required for Combustion | V4: Flue Products | Z4: Theor air lb/ 10000 Btu | AA4: C | AB4: H2 | AC4: S | AD4: O2 | AE4: N2 | AF4: H2O | AG4: Ash
H5: Gross d | I5: Net e | J5: Gross d | K5: Net e | L5: O2 | M5: N2 a | N5: Air | O5: CO2 | P5: H2O | Q5: N2 a | R5: SO2 | S5: O2 | T5: N2 a | U5: Air | V5: CO2 | W5: H2O | X5: N2 a | Y5: SO2
A7: 1 | B7: Carbon | C7: C | D7: 12.011 | J7: 14093 | K7: 14093 | L7: 1 | M7: 3.773 | N7: 4.773 | O7: 1 | Q7: 3.773 | S7: 2.664 | T7: 8.846 | U7: 11.51 | V7: 3.664 | X7: 8.846 | Z7: 8.167 | AA7: 1
A8: 2 | B8: Hydrogen | C8: H2 | D8: 2.0159 | E8: 0.0053 | F8: 188.245 | G8: 0.0696 | H8: 324.2 | I8: 273.9 | J8: 61029 | K8: 51558 | L8: 0.5 | M8: 1.887 | N8: 2.387 | P8: 1 | Q8: 1.887 | S8: 7.936 | T8: 26.353 | U8: 34.29 | W8: 8.937 | X8: 26.353 | Z8: 5.619 | AB8: 1
A9: 3 | B9: Oxygen | C9: O2 | D9: 31.9988 | E9: 0.0844 | F9: 11.85 | G9: 1.1053 | AD9: 1
A10: 4 | B10: Nitrogen | C10: N2 | D10: 28.0134 | E10: 0.0738 | F10: 13.543 | G10: 0.9671 | AE10: 1
A11: 4 | B11: Nitrogen (atm.) | C11: N2a | D11: 28.158 | E11: 0.0742 | F11: 13.474 | G11: 0.972 | AE11: 1
A12: 5 | B12: Carbon Monoxide | C12: CO | D12: 28.0104 | E12: 0.0738 | F12: 13.542 | G12: 0.9672 | H12: 320.6 | I12: 320.6 | J12: 4342 | K12: 4342 | L12: 0.5 | M12: 1.887 | N12: 2.387 | O12: 1 | Q12: 1.887 | S12: 0.571 | T12: 1.897 | U12: 2.468 | V12: 1.571 | X12: 1.897 | Z12: 5.684 | AA12: 1 | AD12: 0.5
A13: 6 | B13: Carbon Dioxide | C13: CO2 | D13: 44.0098 | E13: 0.1166 | F13: 8.574 | G13: 1.5277 | AA13: 1 | AD13: 1
A14: 7 | B14: Methane | C14: CH4 | D14: 16.0428 | E14: 0.0424 | F14: 23.608 | G14: 0.5548 | H14: 1012 | I14: 911 | J14: 23891 | K14: 21511 | L14: 2 | M14: 7.547 | N14: 9.547 | O14: 1 | P14: 2 | Q14: 7.547 | S14: 3.989 | T14: 13.246 | U14: 17.235 | V14: 2.743 | W14: 2.246 | X14: 13.246 | Z14: 7.214 | AA14: 1 | AB14: 2
A15: 8 | B15: Ethane | C15: C2H6 | D15: 30.0697 | E15: 0.0799 | F15: 12.514 | G15: 1.0466 | H15: 1785 | I15: 1634 | J15: 22334 | K15: 20429 | L15: 3.5 | M15: 13.206 | N15: 16.706 | O15: 2 | P15: 3 | Q15: 13.206 | S15: 3.724 | T15: 12.367 | U15: 16.092 | V15: 2.927 | W15: 1.797 | X15: 12.367 | Z15: 7.205 | AA15: 2 | AB15: 3
A16: 9 | B16: Propane | C16: C3H8 | D16: 44.0966 | E16: 0.1183 | F16: 8.456 | G16: 1.5489 | H16: 2561 | I16: 2359 | J16: 21653 | K16: 19921 | L16: 5 | M16: 18.866 | N16: 23.866 | O16: 3 | P16: 4 | Q16: 18.866 | S16: 3.628 | T16: 12.047 | U16: 15.676 | V16: 2.994 | W16: 1.634 | X16: 12.047 | Z16: 7.239 | AA16: 3 | AB16: 4
A17: 10 | B17: n-Butane | C17: C4H10 | D17: 58.1235 | E17: 0.1585 | F17: 6.31 | G17: 2.0758 | H17: 3376 | I17: 3124 | J17: 21299 | K17: 19657 | L17: 6.5 | M17: 24.526 | N17: 31.026 | O17: 4 | P17: 5 | Q17: 24.526 | S17: 3.578 | T17: 11.882 | U17: 15.46 | V17: 3.029 | W17: 1.55 | X17: 11.882 | Z17: 7.259 | AA17: 4 | AB17: 5
A18: 11 | B18: Isobutane | C18: C4H10,iso | D18: 58.1235 | E18: 0.158 | F18: 6.328 | G18: 2.0699 | H18: 3355 | I18: 3104 | J18: 21231 | K18: 19589 | L18: 6.5 | M18: 24.526 | N18: 31.026 | O18: 4 | P18: 5 | Q18: 24.526 | S18: 3.578 | T18: 11.882 | U18: 15.46 | V18: 3.029 | W18: 1.55 | X18: 11.882 | Z18: 7.282 | AA18: 4 | AB18: 5
A19: 12 | B19: n-Pentane | C19: C5H12 | D19: 72.1504 | E19: 0.2019 | F19: 4.952 | G19: 2.645 | H19: 4258 | I19: 3956 | J19: 21085 | K19: 19498 | L19: 8 | M19: 30.186 | N19: 38.186 | O19: 5 | P19: 6 | Q19: 30.186 | S19: 3.548 | T19: 11.781 | U19: 15.329 | V19: 3.05 | W19: 1.498 | X19: 11.781 | Z19: 7.27 | AA19: 5 | AB19: 6
A20: 13 | B20: Isopentane | C20: C5H12,iso | D20: 72.1504 | E20: 0.2001 | F20: 4.999 | G20: 2.6202 | H20: 4210 | I20: 3908 | J20: 21043 | K20: 19455 | L20: 8 | M20: 30.186 | N20: 38.186 | O20: 5 | P20: 6 | Q20: 30.186 | S20: 3.548 | T20: 11.781 | U20: 15.329 | V20: 3.05 | W20: 1.498 | X20: 11.781 | Z20: 7.284 | AA20: 5 | AB20: 6
A21: 14 | B21: Neopentane | C21: C5H12,neo | D21: 72.1504 | E21: 0.1984 | F21: 5.04 | G21: 2.5989 | H21: 4159 | I21: 3857 | J21: 20958 | K21: 19370 | L21: 8 | M21: 30.186 | N21: 38.186 | O21: 5 | P21: 6 | Q21: 30.186 | S21: 3.548 | T21: 11.781 | U21: 15.329 | V21: 3.05 | W21: 1.498 | X21: 11.781 | Z21: 7.314 | AA21: 5 | AB21: 6
A22: 15 | B22: n-Hexane | C22: C6H14 | D22: 86.1773 | E22: 0.2508 | F22: 3.987 | G22: 3.2849 | H22: 5252 | I22: 4900 | J22: 20943 | K22: 19392 | L22: 9.5 | M22: 35.846 | N22: 45.346 | O22: 6 | P22: 7 | Q22: 35.846 | S22: 3.527 | T22: 11.713 | U22: 15.24 | V22: 3.064 | W22: 1.463 | X22: 11.713 | Z22: 7.277 | AA22: 6 | AB22: 7
A23: 16 | B23: Ethylene | C23: C2H4 | D23: 28.0538 | E23: 0.0744 | F23: 13.447 | G23: 0.974 | H23: 1609 | I23: 1509 | J23: 21643 | K23: 20282 | L23: 3 | M23: 11.32 | N23: 14.32 | O23: 2 | P23: 2 | Q23: 11.32 | S23: 3.422 | T23: 11.362 | U23: 14.784 | V23: 3.138 | W23: 1.284 | X23: 11.362 | Z23: 6.831 | AA23: 2 | AB23: 2
A24: 17 | B24: Propylene | C24: C3H6 | D24: 42.0807 | E24: 0.1127 | F24: 8.874 | G24: 1.476 | H24: 2371 | I24: 2220 | J24: 21039 | K24: 19678 | L24: 4.5 | M24: 16.98 | N24: 21.48 | O24: 3 | P24: 3 | Q24: 16.98 | S24: 3.422 | T24: 11.362 | U24: 14.784 | V24: 3.138 | W24: 1.284 | X24: 11.362 | Z24: 7.027 | AA24: 3 | AB24: 3
A25: 18 | B25: n-Butene (Butylene) | C25: C4H8 | D25: 56.1076 | E25: 0.1524 | F25: 6.56 | G25: 1.9966 | H25: 3175 | I25: 2974 | J25: 20831 | K25: 19470 | L25: 6 | M25: 22.64 | N25: 28.64 | O25: 4 | P25: 4 | Q25: 22.64 | S25: 3.422 | T25: 11.362 | U25: 14.784 | V25: 3.138 | W25: 1.284 | X25: 11.362 | Z25: 7.097 | AA25: 4 | AB25: 4
A26: 19 | B26: Isobutene | C26: C4H8,iso | D26: 56.1076 | E26: 0.1524 | F26: 6.561 | G26: 1.9964 | H26: 3156 | I26: 2955 | J26: 20704 | K26: 19343 | L26: 6 | M26: 22.64 | N26: 28.64 | O26: 4 | P26: 4 | Q26: 22.64 | S26: 3.422 | T26: 11.362 | U26: 14.784 | V26: 3.138 | W26: 1.284 | X26: 11.362 | Z26: 7.141 | AA26: 4 | AB26: 4
A27: 20 | B27: n-Pentene | C27: C5H10 | D27: 70.1345 | E27: 0.1947 | F27: 5.135 | G27: 2.5508 | H27: 4032 | I27: 3781 | J27: 20704 | K27: 19343 | L27: 7.5 | M27: 28.3 | N27: 35.8 | O27: 5 | P27: 5 | Q27: 28.3 | S27: 3.422 | T27: 11.362 | U27: 14.784 | V27: 3.138 | W27: 1.284 | X27: 11.362 | Z27: 7.14 | AA27: 5 | AB27: 5
A28: 21 | B28: Benzene | C28: C6H6 | D28: 78.1137 | E28: 0.2213 | F28: 4.518 | G28: 2.8989 | H28: 4024 | I28: 3873 | J28: 18179 | K28: 17446 | L28: 7.5 | M28: 28.3 | N28: 35.8 | O28: 6 | P28: 3 | Q28: 28.3 | S28: 3.072 | T28: 10.201 | U28: 13.274 | V28: 3.38 | W28: 0.692 | X28: 10.201 | Z28: 7.302 | AA28: 6 | AB28: 3
A29: 22 | B29: Toluene | C29: C7H8 | D29: 92.1406 | E29: 0.275 | F29: 3.637 | G29: 3.6016 | H29: 5068 | I29: 4867 | J29: 18430 | K29: 17602 | L29: 9 | M29: 33.959 | N29: 42.959 | O29: 7 | P29: 4 | Q29: 33.959 | S29: 3.125 | T29: 10.378 | U29: 13.504 | V29: 3.343 | W29: 0.782 | X29: 10.378 | Z29: 7.327 | AA29: 7 | AB29: 4
A30: 23 | B30: Xylene | C30: C8H10 | D30: 106.1675 | E30: 0.348 | F30: 2.874 | G30: 4.5576 | H30: 6480 | I30: 6228 | J30: 18622 | K30: 17723 | L30: 10.5 | M30: 39.619 | N30: 50.119 | O30: 8 | P30: 5 | Q30: 39.619 | S30: 3.164 | T30: 10.508 | U30: 13.673 | V30: 3.316 | W30: 0.848 | X30: 10.508 | Z30: 7.342 | AA30: 4 | AB30: 5
A31: 24 | B31: Acetylene | C31: C2H2 | D31: 26.0379 | E31: 0.0691 | F31: 14.48 | G31: 0.9046 | H31: 1484 | I31: 1433 | J31: 21482 | K31: 20749 | L31: 2.5 | M31: 9.433 | N31: 11.933 | O31: 2 | P31: 1 | Q31: 9.433 | S31: 3.072 | T31: 10.201 | U31: 13.274 | V31: 3.38 | W31: 0.692 | X31: 10.201 | Z31: 6.179 | AA31: 2 | AB31: 1
A32: 25 | B32: Naphthalene | C32: C10H8 | D32: 128.1736 | E32: 0.3384 | F32: 2.955 | G32: 4.4323 | H32: 5866 | I32: 5665 | J32: 17335 | K32: 16739 | L32: 12 | M32: 45.279 | N32: 57.279 | O32: 10 | P32: 4 | Q32: 45.279 | S32: 2.995 | T32: 9.947 | U32: 12.943 | V32: 3.434 | W32: 0.562 | X32: 9.947 | Z32: 7.467 | AA32: 10 | AB32: 4
A33: 26 | B33: Methyl alcohol | C33: CH3OH | D33: 32.0422 | E33: 0.0846 | F33: 11.82 | G33: 1.1081 | H33: 868 | I33: 768 | J33: 10265 | K33: 9073 | L33: 1.5 | M33: 5.66 | N33: 7.16 | O33: 1 | P33: 2 | Q33: 5.66 | S33: 1.498 | T33: 4.974 | U33: 6.472 | V33: 1.373 | W33: 1.124 | X33: 4.974 | Z33: 6.305 | AA33: 1 | AB33: 2 | AD33: 0.5
A34: 27 | B34: Ethyl alcohol | C34: C2H5OH | D34: 46.0691 | E34: 0.1216 | F34: 8.224 | G34: 1.5927 | H34: 1602 | I34: 1451 | J34: 13172 | K34: 11929 | L34: 3 | M34: 11.32 | N34: 14.32 | O34: 2 | P34: 3 | Q34: 11.32 | S34: 2.084 | T34: 6.919 | U34: 9.003 | V34: 1.911 | W34: 1.173 | X34: 6.919 | Z34: 6.835 | AA34: 2 | AB34: 3 | AD34: 0.5
A35: 28 | B35: Ammonia | C35: NH3 | D35: 17.0306 | E35: 0.0454 | F35: 22.008 | G35: 0.5951 | H35: 440 | I35: 364 | J35: 9680 | K35: 7998 | L35: 0.75 | M35: 2.83 | N35: 3.58 | P35: 1.5 | Q35: 3.33 | S35: 1.409 | T35: 4.679 | U35: 6.088 | W35: 1.587 | X35: 5.502 | Z35: 6.29 | AB35: 1.5 | AE35: 0.5
A36: 29 | B36: Sulfur | C36: S | D36: 32.066 | J36: 3980 | K36: 3980 | L36: 1 | M36: 3.773 | N36: 4.773 | Q36: 3.773 | R36: 1 | S36: 1 | T36: 3.32 | U36: 4.31 | V36: 1.998 | X36: 3.32 | Y36: 1.998 | Z36: 10.829 | AC36: 1
A37: 30 | B37: Hydrogen sulfide | C37: H2S | D37: 34.0819 | E37: 0.0907 | F37: 11.03 | G37: 1.1875 | H37: 643 | I37: 593 | J37: 7094 | K37: 6534 | L37: 1.5 | M37: 5.66 | N37: 7.16 | P37: 1 | Q37: 5.66 | R37: 1 | S37: 1.41 | T37: 4.682 | U37: 6.093 | V37: 1.88 | W37: 0.529 | X37: 4.682 | Y37: 1.88 | Z37: 8.576 | AB37: 1 | AC37: 1
A38: 31 | B38: Sulfur dioxide | C38: SO2 | D38: 64.0648 | E38: 0.1722 | F38: 5.806 | G38: 2.2558 | AC38: 1 | AD38: 1
A39: 32 | B39: Water | C39: H2O | D39: 18.0153 | E39: 0.0503 | F39: 19.863 | G39: 0.6594 | H39: 50.312 | I39: 0 | J39: 1059.8 | K39: 0 | AF39: 1
A40: 33 | B40: Air | D40: 28.9625 | E40: 0.0763 | F40: 13.098 | G40: 1 | AD40: 0.20946 | AE40: =1-AD40 -> 0.79054
A41: 34 | B41: Ash | C41: Ash | D41: 36 | AG41: 1
A43: All gas volumes corrected to 60F and 14.696 psi dry.
A44: a | B44: 1987 Atomic Weights: C=12.011, H=1.00794, O=15.9994, N=14.0067, S=32.066.
A45: b | B45: Densities calculated from ideal values and compressibility factor given in ASTM D 3588-98. Some of the materials can not exist as gases at 60F and 14.696 psi, in which case which these materials are present, their partial pressure is low enough to keep them as gases.the values are theoretical ones. Under the actual concentrations in
A46: c | B46: For gases saturated with water at 60F and 14.696 psi, 1.74% of the Btu value must be deducted. Reference 2.
A47: d | B47: Reference 2, ASTM 3588-98.
A48: e | B48: Correction from gross to net heating value determined by deducting the HV shown for water vapor times the moles of H2.
A49: f | B49: Reference 3, Jones, F.E.
A50: g | B50: Gas Processors Suppliers Association (GPSA) Data Book, Fig 23-2, Physical Constants, 1987.
A51: h | B51: Either the density or the compressibility factor has been assumed.
A54: (Source) Table 2 : Common Chemical Reactions of Combustion - Combustion Engineering Chapter 10
A55: No. | B55: Combustible | C55: Reaction | F55: Mole | G55: Mass or weight, lb | I55: Heat of Combustion (High) Btu/lb of Fuel
A56: 1 | B56: Carbon (to CO) | C56: 2C + O2 = 2CO | F56: 2 + 1 = 2 | G56: 24 + 32 = | H56: 56 | J56: 3967
A57: 2 | B57: Carbon (to CO2) | C57: C + O2 = CO2 | F57: 1 + 1 = 1 | G57: 12 + 32 = | H57: 44 | J57: 14093
A58: 3 | B58: Carbon Monoxide | C58: 2CO + O2 = 2CO2 | F58: 2 + 1 = 2 | G58: 56 + 32 = | H58: 88 | J58: 4342
A59: 4 | B59: Hydrogen | C59: 2H2 + O2 = 2H2O | F59: 2 + 1 = 2 | G59: 4 +32 = | H59: 36 | J59: 61029
A60: 5 | B60: Sulfur (to SO2) | C60: S + O2 = SO2 | F60: 1 + 1 = 1 | G60: 32 + 32 = | H60: 64 | J60: 3980
A61: 6 | B61: Methane | C61: CH4 + 2O2 = CO2 + 2H2O | F61: 1 + 2 = 1 + 2 | G61: 16 + 64 = | H61: 80 | J61: 23891
A62: 7 | B62: Acetylene | C62: 2C2H2 + 5O2 = 4CO2 + 2H2O | F62: 2 + 5 = 4 + 2 | G62: 52 + 160 = | H62: 212 | J62: 21482
A63: 8 | B63: Ethylene | C63: C2H4 + 3O2 = 2CO2 + 2H2O | F63: 1 + 3 = 2 + 2 | G63: 28 + 96 = | H63: 124 | J63: 21643
A64: 9 | B64: Ethane | C64: 2C2H6 + 7O2 = 4CO2 + 6H2O | F64: 2 + 7 = 4 + 6 | G64: 60 + 224 = | H64: 284 | J64: 22334
A65: 10 | B65: Hydrogen Sulfide | C65: 2H2S + 3O2 = 2SO2 + 2H2O | F65: 2 + 3 = 2 + 2 | G65: 68 + 96 = | H65: 164 | J65: 7094
B66: Copy Rights: Not to be copied or distributed without specific permission from Inveno Engineering LLC; kelly.paffel@invenoeng.com

Sheet Units (hidden)
B2: =IF( Main!P5=1, "Unit Preferences - English", "Unit Preferences - Metric") -> Unit Preferences - English
B3: Mass | C3: =IF(D3="lb",1,0.45359237) -> 1 | D3: =IF(Units_Pref=1,"lb","kg") -> lb
B4: Length | C4: =IF(D4="ft",1,0.3048) -> 1 | D4: =IF(Units_Pref=1,"ft","m") -> ft
B5: Pressure | C5: =IF(D5="psia",1,0.06894757293) -> 1 | D5: =IF(Units_Pref=1,"psia","bara") -> psia
B6: Energy | C6: =IF(D6="Btu",1,1.055055853) -> 1 | D6: =IF(Units_Pref=1,"Btu","kJ") -> Btu
B7: Velocity | C7: =IF(D7="ft/s",1,0.3048) -> 1 | D7: =IF(Units_Pref=1,"ft/s","m/s") -> ft/s
B9: Moisture Level Measurement Basis
B10: Wet-Bulb Temperature
B11: Relative Humidity
B13: Type of Flue Gas Measured | E13: Flue Gas Measurement Basis | I13: Units for Carbon Monoxide
B14: Oxygen | E14: Dry | I14: ppm (by vol)
B15: Carbon Dioxide | E15: Wet | I15: % Vol
B17: Saturation Pressure of Water | E17: Enthalpy for Dry Gas (255K to 1000K) | I17: Enthalpy for Dry Gas (> 1000K) | M17: Enthalpy for Flue Gas (255K to 1000K) | Q17: Enthalpy for Flue Gas (> 1000K) | U17: Enthalpy for Steam/Water at 1psia (200 to 1000F) | Z17: Enthalpy for Dry Residue (0 to 2000°F) | AD17: Enthalpy for Water Vapour (0 to 1000F)
B18: C1 | C18: 0.019257 | E18: C0 | G18: -131.0658 | I18: C0 | K18: -117.7723 | M18: C0 | O18: -123.1899 | Q18: C0 | S18: -118.0095 | U18: C0 | W18: 0.4329 | Z18: C0 | AB18: 0.16 | AD18: C0 | AF18: 0.4408
B19: C2 | C19: 0.001289016 | E19: C1 | G19: 0.4581304 | I19: C1 | K19: 0.3716786 | M19: C1 | O19: 0.4065568 | Q19: C1 | S19: 0.3635095 | U19: C1 | W19: 3.958e-05 | Z19: C1 | AB19: 0.000109 | AD19: C1 | AF19: 2.381e-05
B20: C3 | C20: 1.21122e-05 | E20: C2 | G20: -0.0001075033 | I20: C2 | K20: 8.701906e-05 | M20: C2 | O20: 5.79505e-06 | Q20: C2 | S20: 0.0001039228 | U20: C2 | W20: 1062.2 | Z20: C2 | AB20: 2.843e-08 | AD20: C2 | AF20: 9.638e-09
B21: C4 | C21: 4.534007e-07 | E21: C3 | G21: 1.778848e-07 | I21: C3 | K21: -2.196213e-08 | M21: C3 | O21: 6.331121e-08 | Q21: C3 | S21: -2.72182e-08 | Z21: C3 | AB21: 12.95 | AD21: C3 | AF21: -34.1
B22: C5 | C22: 6.84188e-11 | E22: C4 | G22: -9.248664e-11 | I22: C4 | K22: 2.979562e-12 | M22: C4 | O22: -2.924434e-11 | Q22: C4 | S22: 3.718257e-12
B23: C6 | C23: 2.197092e-11 | E23: C5 | G23: 1.6820314e-14 | I23: C5 | K23: -1.630831e-16 | M23: C5 | O23: 2.491009e-15 | Q23: C5 | S23: -2.030596e-16
B25: Options
B26: Yes
B27: No

Sheet Steam Table
B1: Pressure | D1: Temperature | E1: Specific Volume | G1: Heat -BTU/lb | H1: Enthalpy - BTU/lb
B2: Gage psig | C2: Absolute psia | D2: Saturation Deg. F. | E2: Water vf ft3/lb | F2: Steam vg ft3/lb | G2: Liquid hf | H2: Lat. Heat hfg | I2: Total STM Heat hg
B3: 0 | C3: 14.7 | D3: 212 | E3: 0.016713 | F3: 26.789 | G3: 180.33 | H3: 970 | I3: =SUM(G3:H3) -> 1150.33
B4: 1 | C4: 15.7 | D4: 215.34 | E4: 0.016738 | F4: 25.191 | G4: 183.7 | H4: 967.9 | I4: =SUM(G4:H4) -> 1151.6
B5: 2 | C5: 16.7 | D5: 218.51 | E5: 0.016761 | F5: 23.779 | G5: 186.89 | H5: 966 | I5: 1152.89
B6: 3 | C6: 17.7 | D6: 221.53 | E6: 0.016784 | F6: 22.522 | G6: 189.93 | H6: 964.1 | I6: 1154.03
B7: 4 | C7: 18.7 | D7: 224.4 | E7: 0.016806 | F7: 21.394 | G7: 192.83 | H7: 962.3 | I7: 1155.13
B8: 5 | C8: 19.7 | D8: 227.15 | E8: 0.016827 | F8: 20.378 | G8: 195.61 | H8: 960.5 | I8: 1156.11
B9: 6 | C9: 20.7 | D9: 229.79 | E9: 0.016848 | F9: 19.456 | G9: 198.28 | H9: 958.8 | I9: 1157.08
B10: 7 | C10: 21.7 | D10: 232.33 | E10: 0.016867 | F10: 18.617 | G10: 200.84 | H10: 957.2 | I10: 1158.04
B11: 8 | C11: 22.7 | D11: 234.77 | E11: 0.016886 | F11: 17.849 | G11: 203.31 | H11: 955.6 | I11: 1158.91
B12: 9 | C12: 23.7 | D12: 237.13 | E12: 0.016905 | F12: 17.144 | G12: 205.69 | H12: 954.1 | I12: 1159.79
B13: 10 | C13: 24.7 | D13: 239.4 | E13: 0.016923 | F13: 16.494 | G13: 207.99 | H13: 952.6 | I13: 1160.59
B14: 11 | C14: 25.7 | D14: 241.6 | E14: 0.016941 | F14: 15.892 | G14: 210.21 | H14: 951.2 | I14: 1161.41
B15: 12 | C15: 26.7 | D15: 243.74 | E15: 0.016958 | F15: 15.335 | G15: 212.37 | H15: 949.8 | I15: 1162.17
B16: 13 | C16: 27.7 | D16: 245.8 | E16: 0.016974 | F16: 14.816 | G16: 214.46 | H16: 948.4 | I16: 1162.86
B17: 14 | C17: 28.7 | D17: 247.81 | E17: 0.016991 | F17: 14.332 | G17: 216.5 | H17: 947 | I17: 1163.5
B18: 15 | C18: 29.7 | D18: 249.76 | E18: 0.017006 | F18: 13.88 | G18: 218.47 | H18: 945.7 | I18: 1164.17
B19: 16 | C19: 30.7 | D19: 251.66 | E19: 0.017022 | F19: 13.456 | G19: 220.4 | H19: 944.5 | I19: 1164.9
B20: 17 | C20: 31.7 | D20: 253.51 | E20: 0.017037 | F20: 13.058 | G20: 222.27 | H20: 943.2 | I20: 1165.47
B21: 18 | C21: 32.7 | D21: 255.31 | E21: 0.017052 | F21: 12.684 | G21: 224.1 | H21: 942 | I21: 1166.1
B22: 19 | C22: 33.7 | D22: 257.06 | E22: 0.017067 | F22: 12.331 | G22: 225.88 | H22: 940.8 | I22: 1166.68
B23: 20 | C23: 34.7 | D23: 258.78 | E23: 0.017081 | F23: 11.998 | G23: 227.62 | H23: 939.6 | I23: 1167.22
B24: 21 | C24: 35.7 | D24: 260.45 | E24: 0.017095 | F24: 11.682 | G24: 229.32 | H24: 938.5 | I24: 1167.82
B25: 22 | C25: 36.7 | D25: 262.09 | E25: 0.017109 | F25: 11.384 | G25: 230.99 | H25: 937.4 | I25: 1168.39
B26: 23 | C26: 37.7 | D26: 263.69 | E26: 0.017123 | F26: 11.1 | G26: 232.61 | H26: 936.3 | I26: 1168.91
B27: 24 | C27: 38.7 | D27: 265.25 | E27: 0.017136 | F27: 10.831 | G27: 234.21 | H27: 935.2 | I27: 1169.41
B28: 25 | C28: 39.7 | D28: 266.79 | E28: 0.017149 | F28: 10.575 | G28: 235.77 | H28: 934.1 | I28: 1169.87
B29: 26 | C29: 40.7 | D29: 268.29 | E29: 0.017162 | F29: 10.331 | G29: 237.3 | H29: 933.1 | I29: 1170.4
B30: 27 | C30: 41.7 | D30: 269.76 | E30: 0.017175 | F30: 10.098 | G30: 238.8 | H30: 932 | I30: 1170.8
B31: 28 | C31: 42.7 | D31: 271.21 | E31: 0.017188 | F31: 9.876 | G31: 240.27 | H31: 931 | I31: 1171.27
B32: 29 | C32: 43.7 | D32: 272.63 | E32: 0.0172 | F32: 9.664 | G32: 241.71 | H32: 930 | I32: 1171.71
B33: 30 | C33: 44.7 | D33: 274.02 | E33: 0.017212 | F33: 9.461 | G33: 243.13 | H33: 929 | I33: 1172.13
B34: 31 | C34: 45.7 | D34: 275.38 | E34: 0.017224 | F34: 9.266 | G34: 244.53 | H34: 928.1 | I34: 1172.63
B35: 32 | C35: 46.7 | D35: 276.73 | E35: 0.017236 | F35: 9.08 | G35: 245.89 | H35: 927.1 | I35: 1172.99
B36: 33 | C36: 47.7 | D36: 278.05 | E36: 0.017248 | F36: 8.901 | G36: 247.24 | H36: 926.2 | I36: 1173.44
B37: 34 | C37: 48.7 | D37: 279.34 | E37: 0.01726 | F37: 8.729 | G37: 248.57 | H37: 925.3 | I37: 1173.87
B38: 35 | C38: 49.7 | D38: 280.62 | E38: 0.017271 | F38: 8.564 | G38: 249.87 | H38: 924.3 | I38: 1174.17
B39: 36 | C39: 50.7 | D39: 281.87 | E39: 0.017283 | F39: 8.405 | G39: 251.15 | H39: 923.4 | I39: 1174.55
B40: 37 | C40: 51.7 | D40: 283.11 | E40: 0.017294 | F40: 8.252 | G40: 252.41 | H40: 922.6 | I40: 1175.01
B41: 38 | C41: 52.7 | D41: 284.33 | E41: 0.017305 | F41: 8.104 | G41: 253.66 | H41: 921.7 | I41: 1175.36
B42: 39 | C42: 53.7 | D42: 285.52 | E42: 0.017316 | F42: 7.962 | G42: 254.88 | H42: 920.8 | I42: 1175.68
B43: 40 | C43: 54.7 | D43: 286.71 | E43: 0.017327 | F43: 7.825 | G43: 256.09 | H43: 919.9 | I43: 1175.99
B44: 41 | C44: 55.7 | D44: 287.87 | E44: 0.017338 | F44: 7.693 | G44: 257.28 | H44: 919.1 | I44: 1176.38
B45: 42 | C45: 56.7 | D45: 289.02 | E45: 0.017349 | F45: 7.565 | G45: 258.46 | H45: 918.3 | I45: 1176.76
B46: 43 | C46: 57.7 | D46: 290.15 | E46: 0.017359 | F46: 7.442 | G46: 259.62 | H46: 917.4 | I46: =SUM(G46:H46) -> 1177.02
B47: 44 | C47: 58.7 | D47: 291.26 | E47: 0.01737 | F47: 7.323 | G47: 260.76 | H47: 916.6 | I47: 1177.36
B48: 45 | C48: 59.7 | D48: 292.36 | E48: 0.01738 | F48: 7.207 | G48: 261.89 | H48: 915.8 | I48: 1177.69
B49: 46 | C49: 60.7 | D49: 293.45 | E49: 0.017391 | F49: 7.095 | G49: 263 | H49: 915 | I49: 1178
B50: 47 | C50: 61.7 | D50: 294.52 | E50: 0.017401 | F50: 6.987 | G50: 264.1 | H50: 914.2 | I50: 1178.3
B51: 48 | C51: 62.7 | D51: 295.58 | E51: 0.017411 | F51: 6.882 | G51: 265.18 | H51: 913.4 | I51: 1178.58
B52: 49 | C52: 63.7 | D52: 296.62 | E52: 0.017421 | F52: 6.78 | G52: 266.26 | H52: 912.7 | I52: 1178.96
B53: 50 | C53: 64.7 | D53: 297.65 | E53: 0.017431 | F53: 6.682 | G53: 267.31 | H53: 911.9 | I53: 1179.21
B54: 51 | C54: 65.7 | D54: 298.67 | E54: 0.017441 | F54: 6.586 | G54: 268.36 | H54: 911.1 | I54: 1179.46
B55: 52 | C55: 66.7 | D55: 299.68 | E55: 0.017451 | F55: 6.493 | G55: 269.39 | H55: 910.4 | I55: 1179.79
B56: 53 | C56: 67.7 | D56: 300.67 | E56: 0.017461 | F56: 6.402 | G56: 270.42 | H56: 909.6 | I56: 1180.02
B57: 54 | C57: 68.7 | D57: 301.65 | E57: 0.01747 | F57: 6.314 | G57: 271.43 | H57: 908.9 | I57: 1180.33
B58: 55 | C58: 69.7 | D58: 302.62 | E58: 0.01748 | F58: 6.229 | G58: 272.42 | H58: 908.2 | I58: 1180.62
B59: 56 | C59: 70.7 | D59: 303.58 | E59: 0.01749 | F59: 6.146 | G59: 273.41 | H59: 907.4 | I59: 1180.81
B60: 57 | C60: 71.7 | D60: 304.53 | E60: 0.017499 | F60: 6.065 | G60: 274.39 | H60: 906.7 | I60: 1181.09
B61: 58 | C61: 72.7 | D61: 305.47 | E61: 0.017509 | F61: 5.987 | G61: 275.35 | H61: 906 | I61: 1181.35
B62: 59 | C62: 73.7 | D62: 306.4 | E62: 0.017518 | F62: 5.91 | G62: 276.31 | H62: 905.3 | I62: 1181.61
B63: 60 | C63: 74.7 | D63: 307.32 | E63: 0.017528 | F63: 5.835 | G63: 277.26 | H63: 904.6 | I63: 1181.86
B64: 61 | C64: 75.7 | D64: 308.23 | E64: 0.017532 | F64: 5.763 | G64: 278.19 | H64: 903.9 | I64: 1182.09
B65: 62 | C65: 76.7 | D65: 309.12 | E65: 0.017541 | F65: 5.692 | G65: 279.12 | H65: 903.2 | I65: 1182.32
B66: 63 | C66: 77.7 | D66: 310.01 | E66: 0.01755 | F66: 5.623 | G66: 280.04 | H66: 902.5 | I66: 1182.54
B67: 64 | C67: 78.7 | D67: 310.89 | E67: 0.01756 | F67: 5.555 | G67: 280.94 | H67: 901.9 | I67: 1182.84
B68: 65 | C68: 79.7 | D68: 311.76 | E68: 0.017569 | F68: 5.49 | G68: 281.84 | H68: 901.2 | I68: 1183.04
B69: 66 | C69: 80.7 | D69: 312.63 | E69: 0.017578 | F69: 5.425 | G69: 282.73 | H69: 900.5 | I69: 1183.23
B70: 67 | C70: 81.7 | D70: 313.48 | E70: 0.017587 | F70: 5.363 | G70: 283.62 | H70: 899.9 | I70: 1183.52
B71: 68 | C71: 82.7 | D71: 314.33 | E71: 0.017596 | F71: 5.302 | G71: 284.49 | H71: 899.2 | I71: 1183.69
B72: 69 | C72: 83.7 | D72: 315.16 | E72: 0.017605 | F72: 5.242 | G72: 285.36 | H72: 898.6 | I72: 1183.96
B73: 70 | C73: 84.7 | D73: 315.99 | E73: 0.017614 | F73: 5.184 | G73: 286.21 | H73: 897.9 | I73: 1184.11
B74: 71 | C74: 85.7 | D74: 316.82 | E74: 0.017623 | F74: 5.126 | G74: 287.06 | H74: 897.3 | I74: 1184.36
B75: 72 | C75: 86.7 | D75: 317.63 | E75: 0.017631 | F75: 5.071 | G75: 287.91 | H75: 896.6 | I75: 1184.51
B76: 73 | C76: 87.7 | D76: 318.44 | E76: 0.01764 | F76: 5.016 | G76: 288.74 | H76: 896 | I76: 1184.74
B77: 74 | C77: 88.7 | D77: 319.24 | E77: 0.017649 | F77: 4.963 | G77: 289.57 | H77: 895.4 | I77: 1184.97
B78: 75 | C78: 89.7 | D78: 320.03 | E78: 0.017657 | F78: 4.911 | G78: 290.39 | H78: 894.8 | I78: 1185.19
B79: 76 | C79: 90.7 | D79: 320.81 | E79: 0.017666 | F79: 4.86 | G79: 291.2 | H79: 894.1 | I79: 1185.3
B80: 77 | C80: 91.7 | D80: 321.59 | E80: 0.017674 | F80: 4.81 | G80: 292.01 | H80: 893.5 | I80: 1185.51
B81: 78 | C81: 92.7 | D81: 322.37 | E81: 0.017683 | F81: 4.761 | G81: 292.81 | H81: 892.9 | I81: 1185.71
B82: 79 | C82: 93.7 | D82: 323.13 | E82: 0.017691 | F82: 4.713 | G82: 293.6 | H82: 892.3 | I82: 1185.9
B83: 80 | C83: 94.7 | D83: 323.89 | E83: 0.0177 | F83: 4.666 | G83: 294.39 | H83: 891.7 | I83: 1186.09
B84: 81 | C84: 95.7 | D84: 324.64 | E84: 0.017708 | F84: 4.62 | G84: 295.17 | H84: 891.1 | I84: 1186.27
B85: 82 | C85: 96.7 | D85: 325.39 | E85: 0.017716 | F85: 4.575 | G85: 295.95 | H85: 890.5 | I85: 1186.45
B86: 83 | C86: 97.7 | D86: 326.13 | E86: 0.017724 | F86: 4.531 | G86: 296.71 | H86: 889.9 | I86: 1186.61
B87: 84 | C87: 98.7 | D87: 326.86 | E87: 0.017732 | F87: 4.487 | G87: 297.48 | H87: 889.3 | I87: 1186.78
B88: 85 | C88: 99.7 | D88: 327.59 | E88: 0.01774 | F88: 4.445 | G88: 298.23 | H88: 888.8 | I88: 1187.03
B89: 86 | C89: 100.7 | D89: 328.31 | E89: 0.017748 | F89: 4.401 | G89: 298.98 | H89: 888.2 | I89: =SUM(G89:H89) -> 1187.18
B90: 87 | C90: 101.7 | D90: 329.03 | E90: 0.017756 | F90: 4.36 | G90: 299.73 | H90: 887.6 | I90: 1187.33
B91: 88 | C91: 102.7 | D91: 329.74 | E91: 0.017764 | F91: 4.32 | G91: 300.47 | H91: 887 | I91: 1187.47
B92: 89 | C92: 103.7 | D92: 330.45 | E92: 0.017772 | F92: 4.28 | G92: 301.2 | H92: 886.5 | I92: 1187.7
B93: 90 | C93: 104.7 | D93: 331.15 | E93: 0.01778 | F93: 4.242 | G93: 301.93 | H93: 885.9 | I93: 1187.83
B94: 91 | C94: 105.7 | D94: 331.84 | E94: 0.017788 | F94: 4.204 | G94: 302.66 | H94: 885.4 | I94: 1188.06
B95: 92 | C95: 106.7 | D95: 332.53 | E95: 0.017796 | F95: 4.167 | G95: 303.37 | H95: 884.8 | I95: 1188.17
B96: 93 | C96: 107.7 | D96: 333.22 | E96: 0.017804 | F96: 4.13 | G96: 304.09 | H96: 884.2 | I96: 1188.29
B97: 94 | C97: 108.7 | D97: 333.9 | E97: 0.017811 | F97: 4.094 | G97: 304.8 | H97: 883.7 | I97: 1188.5
B98: 95 | C98: 109.7 | D98: 334.57 | E98: 0.017819 | F98: 4.059 | G98: 305.5 | H98: 883.1 | I98: 1188.6
B99: 96 | C99: 110.7 | D99: 335.24 | E99: 0.017827 | F99: 4.024 | G99: 306.2 | H99: 882.6 | I99: 1188.8
B100: 97 | C100: 111.7 | D100: 335.91 | E100: 0.017834 | F100: 3.99 | G100: 306.89 | H100: 882.1 | I100: 1188.99
B101: 98 | C101: 112.7 | D101: 336.57 | E101: 0.017842 | F101: 3.957 | G101: 307.58 | H101: 881.5 | I101: 1189.08
B102: 99 | C102: 113.7 | D102: 337.22 | E102: 0.017849 | F102: 3.924 | G102: 308.26 | H102: 881 | I102: 1189.26
B103: 100 | C103: 114.7 | D103: 337.87 | E103: 0.017857 | F103: 3.891 | G103: 308.94 | H103: 880.4 | I103: 1189.34
B104: 101 | C104: 115.7 | D104: 338.52 | E104: 0.017864 | F104: 3.859 | G104: 309.62 | H104: 879.9 | I104: 1189.52
B105: 102 | C105: 116.7 | D105: 339.16 | E105: 0.017872 | F105: 3.828 | G105: 310.29 | H105: 879.4 | I105: 1189.69
B106: 103 | C106: 117.7 | D106: 339.8 | E106: 0.017879 | F106: 3.797 | G106: 310.96 | H106: 878.9 | I106: 1189.86
B107: 104 | C107: 118.7 | D107: 340.43 | E107: 0.017886 | F107: 3.767 | G107: 311.62 | H107: 878.3 | I107: 1189.92
B108: 105 | C108: 119.7 | D108: 341.06 | E108: 0.017894 | F108: 3.737 | G108: 312.28 | H108: 877.8 | I108: 1190.08
B109: 106 | C109: 120.7 | D109: 341.69 | E109: 0.017901 | F109: 3.708 | G109: 312.93 | H109: 877.3 | I109: 1190.23
B110: 107 | C110: 121.7 | D110: 342.31 | E110: 0.017908 | F110: 3.679 | G110: 313.58 | H110: 876.8 | I110: 1190.38
B111: 108 | C111: 122.7 | D111: 342.93 | E111: 0.017915 | F111: 3.65 | G111: 314.23 | H111: 876.3 | I111: 1190.53
B112: 109 | C112: 123.7 | D112: 343.54 | E112: 0.017922 | F112: 3.622 | G112: 314.87 | H112: 875.8 | I112: 1190.67
B113: 110 | C113: 124.7 | D113: 344.15 | E113: 0.01793 | F113: 3.595 | G113: 315.51 | H113: 875.3 | I113: 1190.81
B114: 111 | C114: 125.7 | D114: 344.76 | E114: 0.017937 | F114: 3.568 | G114: 316.14 | H114: 874.8 | I114: 1190.94
B115: 112 | C115: 126.7 | D115: 345.36 | E115: 0.017944 | F115: 3.541 | G115: 316.77 | H115: 874.3 | I115: 1191.07
B116: 113 | C116: 127.7 | D116: 345.95 | E116: 0.017951 | F116: 3.514 | G116: 317.4 | H116: 873.8 | I116: 1191.2
B117: 114 | C117: 128.7 | D117: 346.55 | E117: 0.017958 | F117: 3.489 | G117: 318.02 | H117: 873.3 | I117: 1191.32
B118: 115 | C118: 129.7 | D118: 347.14 | E118: 0.017965 | F118: 3.463 | G118: 318.64 | H118: 872.8 | I118: 1191.44
B119: 116 | C119: 130.7 | D119: 347.73 | E119: 0.017972 | F119: 3.438 | G119: 319.26 | H119: 872.3 | I119: 1191.56
B120: 117 | C120: 131.7 | D120: 348.31 | E120: 0.017979 | F120: 3.413 | G120: 319.87 | H120: 871.8 | I120: 1191.67
B121: 118 | C121: 132.7 | D121: 348.89 | E121: 0.017986 | F121: 3.388 | G121: 320.48 | H121: 871.3 | I121: 1191.78
B122: 119 | C122: 133.7 | D122: 349.47 | E122: 0.017993 | F122: 3.364 | G122: 321.09 | H122: 870.8 | I122: 1191.89
B123: 120 | C123: 134.7 | D123: 350.04 | E123: 0.018 | F123: 3.341 | G123: 321.69 | H123: 870.3 | I123: 1191.99
B124: 121 | C124: 135.7 | D124: 350.61 | E124: 0.018006 | F124: 3.317 | G124: 322.29 | H124: 869.9 | I124: 1192.19
B125: 122 | C125: 136.7 | D125: 351.18 | E125: 0.018013 | F125: 3.294 | G125: 322.88 | H125: 869.4 | I125: 1192.28
B126: 123 | C126: 137.7 | D126: 351.74 | E126: 0.01802 | F126: 3.271 | G126: 323.48 | H126: 868.9 | I126: 1192.38
B127: 124 | C127: 138.7 | D127: 352.3 | E127: 0.018027 | F127: 3.249 | G127: 324.07 | H127: 868.4 | I127: 1192.47
B128: 125 | C128: 139.7 | D128: 352.86 | E128: 0.018033 | F128: 3.227 | G128: 324.65 | H128: 868 | I128: 1192.65
B129: 126 | C129: 140.7 | D129: 353.41 | E129: 0.01804 | F129: 3.205 | G129: 325.23 | H129: 867.5 | I129: 1192.73
B130: 127 | C130: 141.7 | D130: 353.96 | E130: 0.018047 | F130: 3.183 | G130: 325.81 | H130: 867 | I130: 1192.81
B131: 128 | C131: 142.7 | D131: 354.51 | E131: 0.018053 | F131: 3.162 | G131: 326.39 | H131: 866.6 | I131: 1192.99
B132: 129 | C132: 143.7 | D132: 355.05 | E132: 0.01806 | F132: 3.141 | G132: 326.96 | H132: 866.1 | I132: =SUM(G132:H132) -> 1193.06
B133: 130 | C133: 144.7 | D133: 355.6 | E133: 0.018067 | F133: 3.12 | G133: 327.54 | H133: 865.6 | I133: 1193.14
B134: 131 | C134: 145.7 | D134: 356.13 | E134: 0.018073 | F134: 3.1 | G134: 328.1 | H134: 865.2 | I134: 1193.3
B135: 132 | C135: 146.7 | D135: 356.67 | E135: 0.01808 | F135: 3.08 | G135: 328.67 | H135: 864.7 | I135: 1193.37
B136: 133 | C136: 147.7 | D136: 357.2 | E136: 0.018086 | F136: 3.06 | G136: 329.23 | H136: 864.2 | I136: 1193.43
B137: 134 | C137: 148.7 | D137: 357.73 | E137: 0.018093 | F137: 3.04 | G137: 329.79 | H137: 863.8 | I137: 1193.59
B138: 135 | C138: 149.7 | D138: 358.26 | E138: 0.018099 | F138: 3.021 | G138: 330.35 | H138: 863.3 | I138: 1193.65
B139: 136 | C139: 150.7 | D139: 358.79 | E139: 0.018106 | F139: 3.002 | G139: 330.9 | H139: 862.9 | I139: 1193.8
B140: 137 | C140: 151.7 | D140: 359.31 | E140: 0.018112 | F140: 2.983 | G140: 331.45 | H140: 862.4 | I140: 1193.85
B141: 138 | C141: 152.7 | D141: 359.83 | E141: 0.018119 | F141: 2.964 | G141: 332 | H141: 862 | I141: 1194
B142: 139 | C142: 153.7 | D142: 360.34 | E142: 0.018125 | F142: 2.946 | G142: 332.54 | H142: 861.5 | I142: 1194.04
B143: 140 | C143: 154.7 | D143: 360.86 | E143: 0.018132 | F143: 2.928 | G143: 333.09 | H143: 861.1 | I143: 1194.19
B144: 141 | C144: 155.7 | D144: 361.37 | E144: 0.018138 | F144: 2.91 | G144: 333.63 | H144: 860.7 | I144: 1194.33
B145: 142 | C145: 156.7 | D145: 361.88 | E145: 0.018144 | F145: 2.892 | G145: 334.17 | H145: 860.2 | I145: 1194.37
B146: 143 | C146: 157.7 | D146: 362.38 | E146: 0.018151 | F146: 2.874 | G146: 334.7 | H146: 859.8 | I146: 1194.5
B147: 144 | C147: 158.7 | D147: 362.89 | E147: 0.018157 | F147: 2.857 | G147: 335.23 | H147: 859.3 | I147: 1194.53
B148: 145 | C148: 159.7 | D148: 363.39 | E148: 0.018163 | F148: 2.84 | G148: 335.77 | H148: 858.9 | I148: 1194.67
B149: 146 | C149: 160.7 | D149: 363.89 | E149: 0.018169 | F149: 2.823 | G149: 336.29 | H149: 858.5 | I149: 1194.79
B150: 147 | C150: 161.7 | D150: 364.38 | E150: 0.018176 | F150: 2.806 | G150: 336.82 | H150: 858 | I150: 1194.82
B151: 148 | C151: 162.7 | D151: 364.88 | E151: 0.018182 | F151: 2.79 | G151: 337.34 | H151: 857.6 | I151: 1194.94
B152: 149 | C152: 163.7 | D152: 365.37 | E152: 0.018188 | F152: 2.773 | G152: 337.86 | H152: 857.2 | I152: 1195.06
B153: 150 | C153: 164.7 | D153: 365.86 | E153: 0.018194 | F153: 2.757 | G153: 338.38 | H153: 856.7 | I153: 1195.08
B154: 152 | C154: 166.7 | D154: 366.83 | E154: 0.018207 | F154: 2.726 | G154: 339.41 | H154: 855.9 | I154: 1195.31
B155: 154 | C155: 168.7 | D155: 367.79 | E155: 0.018219 | F155: 2.695 | G155: 340.43 | H155: 855.1 | I155: 1195.53
B156: 156 | C156: 170.7 | D156: 368.74 | E156: 0.018231 | F156: 2.664 | G156: 341.44 | H156: 854.2 | I156: 1195.64
B157: 158 | C157: 172.7 | D157: 369.69 | E157: 0.018243 | F157: 2.635 | G157: 342.45 | H157: 853.4 | I157: 1195.85
B158: 160 | C158: 174.7 | D158: 370.62 | E158: 0.018255 | F158: 2.606 | G158: 343.44 | H158: 852.5 | I158: 1195.94
B159: 162 | C159: 176.7 | D159: 371.55 | E159: 0.018267 | F159: 2.577 | G159: 344.43 | H159: 851.7 | I159: 1196.13
B160: 164 | C160: 178.7 | D160: 372.47 | E160: 0.018279 | F160: 2.55 | G160: 345.41 | H160: 850.9 | I160: 1196.31
B161: 166 | C161: 180.7 | D161: 373.38 | E161: 0.018291 | F161: 2.523 | G161: 346.38 | H161: 850.1 | I161: 1196.48
B162: 168 | C162: 182.7 | D162: 374.29 | E162: 0.018303 | F162: 2.496 | G162: 347.34 | H162: 849.3 | I162: 1196.64
B163: 170 | C163: 184.7 | D163: 375.18 | E163: 0.018314 | F163: 2.47 | G163: 348.3 | H163: 848.5 | I163: 1196.8
B164: 172 | C164: 186.7 | D164: 376.07 | E164: 0.018326 | F164: 2.445 | G164: 349.24 | H164: 847.7 | I164: 1196.94
B165: 174 | C165: 188.7 | D165: 376.95 | E165: 0.018338 | F165: 2.42 | G165: 350.18 | H165: 846.9 | I165: 1197.08
B166: 175 | C166: 189.7 | D166: 377.51 | E166: 0.018344 | F166: 2.413 | G166: 350.8 | H166: 846.5 | I166: 1197.3
B167: 176 | C167: 190.7 | D167: 377.82 | E167: 0.018349 | F167: 2.395 | G167: 351.12 | H167: 846.1 | I167: 1197.22
B168: 178 | C168: 192.7 | D168: 378.69 | E168: 0.018361 | F168: 2.371 | G168: 352.04 | H168: 845.3 | I168: 1197.34
B169: 180 | C169: 194.7 | D169: 379.55 | E169: 0.018372 | F169: 2.348 | G169: 352.96 | H169: 844.6 | I169: 1197.56
B170: 182 | C170: 196.7 | D170: 380.4 | E170: 0.018383 | F170: 2.325 | G170: 353.87 | H170: 843.8 | I170: 1197.67
B171: 184 | C171: 198.7 | D171: 381.25 | E171: 0.018395 | F171: 2.302 | G171: 354.78 | H171: 843 | I171: 1197.78
B172: 186 | C172: 200.7 | D172: 382.09 | E172: 0.018406 | F172: 2.28 | G172: 355.68 | H172: 842.9 | I172: 1198.58
B173: 188 | C173: 202.7 | D173: 382.92 | E173: 0.018417 | F173: 2.258 | G173: 356.57 | H173: 842.2 | I173: 1198.77
B174: 190 | C174: 204.7 | D174: 383.75 | E174: 0.018428 | F174: 2.237 | G174: 357.45 | H174: 841.4 | I174: 1198.85
B175: 192 | C175: 206.7 | D175: 384.57 | E175: 0.018439 | F175: 2.216 | G175: 358.33 | H175: 840.6 | I175: =SUM(G175:H175) -> 1198.93
B176: 194 | C176: 208.7 | D176: 385.38 | E176: 0.01845 | F176: 2.196 | G176: 359.21 | H176: 839.9 | I176: 1199.11
B177: 196 | C177: 210.7 | D177: 386.19 | E177: 0.018461 | F177: 2.175 | G177: 360.07 | H177: 839.1 | I177: 1199.17
B178: 198 | C178: 212.7 | D178: 386.99 | E178: 0.018472 | F178: 2.156 | G178: 360.94 | H178: 838.4 | I178: 1199.34
B179: 200 | C179: 214.7 | D179: 387.79 | E179: 0.018483 | F179: 2.136 | G179: 361.79 | H179: 837.7 | I179: 1199.49
B180: 205 | C180: 219.7 | D180: 389.75 | E180: 0.01851 | F180: 2.089 | G180: 363.91 | H180: 835.8 | I180: 1199.71
B181: 210 | C181: 224.7 | D181: 391.68 | E181: 0.018537 | F181: 2.044 | G181: 365.99 | H181: 834 | I181: 1199.99
B182: 215 | C182: 229.7 | D182: 393.58 | E182: 0.018563 | F182: 2.001 | G182: 368.03 | H182: 832.2 | I182: 1200.23
B183: 220 | C183: 234.7 | D183: 395.44 | E183: 0.01859 | F183: 1.96 | G183: 370.05 | H183: 830.4 | I183: 1200.45
B184: 225 | C184: 239.7 | D184: 397.28 | E184: 0.018616 | F184: 1.92 | G184: 372.03 | H184: 828.7 | I184: 1200.73
B185: 230 | C185: 244.7 | D185: 399.08 | E185: 0.018641 | F185: 1.882 | G185: 373.99 | H185: 826.9 | I185: 1200.89
B186: 235 | C186: 249.7 | D186: 400.86 | E186: 0.018667 | F186: 1.845 | G186: 375.92 | H186: 825.2 | I186: 1201.12
B187: 240 | C187: 254.7 | D187: 402.61 | E187: 0.018692 | F187: 1.81 | G187: 377.82 | H187: 823.5 | I187: 1201.32
B188: 245 | C188: 259.7 | D188: 404.33 | E188: 0.018717 | F188: 1.776 | G188: 379.69 | H188: 821.8 | I188: 1201.49
B189: 250 | C189: 264.7 | D189: 406.03 | E189: 0.018742 | F189: 1.743 | G189: 381.54 | H189: 820.2 | I189: 1201.74
B190: 255 | C190: 269.7 | D190: 407.7 | E190: 0.018767 | F190: 1.711 | G190: 383.36 | H190: 818.5 | I190: 1201.86
B191: 260 | C191: 274.7 | D191: 409.35 | E191: 0.018791 | F191: 1.681 | G191: 385.16 | H191: 816.9 | I191: 1202.06
B192: 265 | C192: 279.7 | D192: 410.97 | E192: 0.018816 | F192: 1.652 | G192: 386.94 | H192: 815.3 | I192: 1202.24
B193: 270 | C193: 284.7 | D193: 412.58 | E193: 0.01884 | F193: 1.623 | G193: 388.69 | H193: 813.7 | I193: 1202.39
B194: 275 | C194: 289.7 | D194: 414.16 | E194: 0.018864 | F194: 1.596 | G194: 390.42 | H194: 812.1 | I194: 1202.52
B195: 280 | C195: 294.7 | D195: 415.72 | E195: 0.018887 | F195: 1.569 | G195: 392.14 | H195: 810.5 | I195: 1202.64
B196: 285 | C196: 299.7 | D196: 417.26 | E196: 0.018911 | F196: 1.544 | G196: 393.83 | H196: 809 | I196: 1202.83
B197: 290 | C197: 304.7 | D197: 418.78 | E197: 0.018934 | F197: 1.519 | G197: 395.5 | H197: 807.5 | I197: 1203
B198: 295 | C198: 309.7 | D198: 420.28 | E198: 0.018958 | F198: 1.495 | G198: 397.15 | H198: 805.9 | I198: 1203.05
B199: 300 | C199: 314.7 | D199: 421.76 | E199: 0.018981 | F199: 1.471 | G199: 398.79 | H199: 804.4 | I199: 1203.19
B200: 310 | C200: 324.7 | D200: 424.67 | E200: 0.019027 | F200: 1.427 | G200: 402.01 | H200: 801.4 | I200: 1203.41
... 30 more rows
